{"text_format":"1","workbook":"xlsx","n_sheets":6,"sheets":["listino prezzi","Indice","accessori","IP camera","Thermal camera","Condizioni di fornitura"],"not_rendered":{"charts":0,"images":92,"macros":1,"external_links":0,"defined_names":13,"comments":0,"pivot_tables":0},"unopened":[],"bounds":{"document_bytes":16777216,"sheet_cells":100000,"rows_first":2000,"rows_last":500,"rows_between":2000,"halvings":0,"cell_chars":16384,"cell_head_chars":4096},"cells_cut":0,"cells_raw":0,"read":"whole","date_system":"1900"}

{"sheet":"listino prezzi","index":0,"n_rows":6,"n_cols":22,"rows_kept":6,"cut":false,"hidden":false,"merged":[]}
[]
[]
[]
[]
[]
[null,null,null,null,null,null,null,null,null,null,null,null,null,null,null,null,null,null,null,null,null,"rev. 01/2026"]

{"sheet":"Indice","index":1,"n_rows":17,"n_cols":10,"rows_kept":17,"cut":false,"hidden":false,"merged":[]}
[]
[]
[null,null,"LISTINO PREZZI 2026           EURO € ",null,null,null,null,null,null,"condizioni generali di vendita"]
[null,null,"rev. 01-2026"]
[null,"accessori                                     CCTV",null,null,null,"unità di ripresa con                       IP CAMERA",null,null,null,"unità di ripresa con TERMOCAMERA"]
[]
[null,"Custodie per telecamere, IP camera, telecamere termiche",null,null,null,"unità di ripresa in acciaio inox Full-HD",null,null,null,"Aluminium Thermal cameras                                    for SECURITY res. 384x288 or 640x480 IP"]
[null,"Unità di posizionamento P&T in acciaio inox",null,null,null,"unità di ripresa in acciaio inox Full-HD",null,null,null,"Aluminium Thermal cameras for RADIOMETRIC res. 384x288 or 640x480 IP"]
[null,"Custodie ATEX                                                                 alluminio Anticorodal/acciaio inox AISI 316L",null,null,null,"unità di ripresa in acciaio inox 8Mpx 4K",null,null,null,"AISI 316L stainless steel Thermal cameras for SECURITY res. 384x288  or 640x480IP"]
[null,"Custodie con illuminatore IR integrato (alimentazione tradizionale e POE)",null,null,null,"unità di ripresa in acciaio inox per Tunnel",{"$error":"#VALUE!"},null,null,"AISI 316L stainless steel  Thermal cameras for RADIOMETRIC res. 384x288 or 640x480IP"]
[null,"Custodie in acciaio inox",null,null,null,"unità di ripresa in acciaio inox per ambienti ad alte temperature",null,null,null,"Aluminium ATEX Thermal cameras                                    for SECURITY res. 384x288 or 640x480 IP"]
[null,"custodie in alluminio esecuzioni speciali (con fibra ottica, raffreddate ad aria)",null,null,null,"unità di ripresa ATEX per ambienti a rischio esplosione",null,null,null,"Aluminium ATEX Thermal cameras                                    for RADIOMETRIC res. 384x288 or 640x480 IP"]
[null,"Custodie in acciaio inox esecuzioni speciali (con  fibra ottica, raffreddate ad aria, versione per Tunnel)",null,null,null,"unità di ripresa PTZ dome in acciaio inox",null,null,null,"AISI 316L stainless steel ATEX Thermal cameras for SECURITY                                                     res. 384x288 or 640x480 IP"]
[null,"Illuminatori ad infrarosso a LED o a luce bianca",null,null,null,null,null,null,null,"AISI 316L stainless steel ATEX  Thermal cameras for RADIOMETRIC                                                    res. 384x288 or 640x480 IP"]
[null,"Custodie a sfera per dome/PTZ"]
[null,"Supporti e snodo per custodie"]
[null,"Adattatori da palo/angolo per custodie"]

{"sheet":"accessori","index":2,"n_rows":1010,"n_cols":4,"rows_kept":1010,"cut":false,"hidden":false,"merged":[]}
[null,"Code","Description","Price                € "]
[]
[null,"Imbragature per monitor LCD "]
[null,null,"ILP30-ILS30 lcd portamonitor"]
[null,9898010004,"ILP30 portamonitor LCD a parete",110]
[null,9898010005,"ILS30 portamonitor LCD a soffitto",180]
[]
[]
[null,"Custodie per telecamere, IP camera, telecamere termiche"]
[null,null,"CRONO CLK300"]
[null,9830010004,"CRONO CLK300+TC+ST+RS -230-",174]
[null,9830010005,"CRONO CLK300+TC+ST+RS -24-",174]
[null,9830010006,"CRONO CLK300+TC+ST+RS  -12-",174]
[null,9830010007,"CRONO CLK300+TC+ST  -NORISC-",164]
[null,9830010008,"CRONO CLK300+ST  -NORISC-",152]
[null,9830010009,"CRONO CLK300 solo corpo  -NORISC-",114]
[null,9830080001,"VI300 set ventilazione interna  pre-assemblata",82]
[null,9830080002,"VE300 set ventilazione ad estrazione  pre-assemblato",131]
[null,9830080003,"RS300/A set riscaldamento in scatola -230-",45]
[null,9830080004,"VC300 vetrocamera",58]
[null,9830080005,"VA300 vetro antisfondamento",49]
[null,9830080006,"RS300/B set riscaldamento in scatola -24-",45]
[null,9830080007,"RS300/C set riscaldamento in scatola -12-",45]
[null,9830080008,"AL300/A alimentatore 230/12Vdc 1,3A",49]
[null,9830080009,"AL300/B alimentatore 230/24Vac  500mA",49]
[null,9830080020,"TP300 tamper antimanomissione",46]
[null,9830090002,"LC300 lucchetto per chiusura posteriore",21]
[null,9830090003,"TC300 tettuccio parasole",24]
[null,9830090005,"CRONO Air Purge System -ugello pulizia vetro frontale-",80]
[null,9830090006,"CRONO ricambio vetro anteriore temperato ",18]
[null,9830090007,"CRONO CLK300 set ricambio spazzola tergicristallo",75]
[null,9830090012,"CRONO ricambio vetro anteriore in Margard",18]
[null,null,"versione con alimentazione PoE:"]
[null,9830510004,"CRONO CLK305POE+TC+ST+RS",303]
[null,9830510007,"CRONO CLK305POE+TC+ST",170]
[null,9830510008,"CRONO CLK305POE+ST",164]
[null,9830580001,"VI305 set ventilazione interna pre-assemblato",98]
[null,9830580002,"VE305 set ventilazione ad estrazione pre-assemblato",142]
[null,9830580003,"RS305 set riscaldamento PoE",170]
[null,9830580004,"VC305 vetrocamera",58]
[null,9830580005,"VA305 vetro antisfondamento",49]
[null,9830580006,"PSP1 PoE injector CRONO series  19W",125]
[null,9830580007,"PSP1 POE injector CRONO series  17W",177]
[null,9830580010,"PSP1 BOX scatola di giunzione esterna IP55",116]
[null,9830590003,"LC305 lucchetto per chiusura posteriore",21]
[null,9830590002,"TC305 tettuccio parasole",24]
[]
[]
[null,null,"versione  THERMAL  per telecamere termiche:"]
[null,9831110004,"CRONO CLK311+TC+ST+RS -230- Thermal-  GE Ø 35",774]
[null,9831110005,"CRONO CLK311+TC+ST+RS -24- Thermal-   GE Ø 35",774]
[null,9831110006,"CRONO CLK311+TC+ST+RS -12- Thermal-   GE Ø 35",774]
[null,9831110024,"CRONO CLK311+TC+ST+RS -230- Thermal-  GE Ø 55",1104]
[null,9831110025,"CRONO CLK311+TC+ST+RS -24- Thermal-   GE Ø 55",1104]
[null,9831110026,"CRONO CLK311+TC+ST+RS -12- Thermal-   GE Ø 55",1104]
[null,9831180001,"VI311 set ventilazione interna pre-assemblata",82]
[null,9831180002,"VE311 set ventilazione ad estrazione pre-assemblato",131]
[null,9831180003,"RS311/A set riscaldamento in scatola -230-",45]
[null,9831180004,"RS311/B set riscaldamento in scatola -24-",45]
[null,9831180005,"RS311/C set riscaldamento in scatola -12-",45]
[null,9831180006,"AL311/A alimentatore 230/12Vdc 1,3A",49]
[null,9831180007,"AL311/B alimentatore 230/24Vac 500mA",49]
[null,9831180008,"TP311 tamper antimanomissione",46]
[null,9831190001,"TC311 tettuccio parasole",24]
[null,9831190002,"LC311 lucchetto per chiusura posteriore",21]
[]
[]
[null,null,"versione  THERMAL  PoE  per telecamere termiche:"]
[null,9831510004,"CRONO CLK315POE+TC+ST+RS Thermal-  GE Ø 35",903]
[null,9831510007,"CRONO CLK315POE+TC+ST  Thermal-  GE Ø 35",770]
[null,9831510008,"CRONO CLK315POE+ST  Thermal-  GE Ø 35",764]
[null,9831510024,"CRONO CLK315POE+TC+ST+RS Thermal-  GE Ø 55",1233]
[null,9831510025,"CRONO CLK315POE+TC+ST  Thermal-  GE Ø 55",1100]
[null,9831510026,"CRONO CLK315POE+ST  Thermal-  GE Ø 55",1094]
[]
[]
[null,null,"versione  con tergicristallo integrato:"]
[null,9830011004,"CRONO CLK300+TC+ST+RS+WP -230-",660]
[null,9830011005,"CRONO CLK300+TC+ST+RS+WP -24-",660]
[null,9830011007,"CRONO CLK300+TC+ST+WP -230-  *NORISC*",649]
[null,9830011008,"CRONO CLK300+TC+ST+WP -24-  *NORISC*",649]
[null,9830011009,"CRONO CLK300+ST+WP -230-  *NORISC*",638]
[null,9830011010,"CRONO CLK300+ST+WP -24-  *NORISC*",638]
[null,9830080003,"RS300/A set riscaldamento in scatola -230-",45]
[null,9830080006,"RS300/B set riscaldamento in scatola -24-",45]
[null,9830080007,"RS300/C set riscaldamento in scatola -12-",45]
[null,9830080008,"AL300/A alimentatore 230/12Vdc 1,3A",49]
[null,9830080009,"AL300/B alimentatore 230/24Vac  500mA",49]
[null,9830080020,"TP300 tamper antimanomissione",46]
[null,9830090002,"LC300 lucchetto per chiusura posteriore",21]
[null,9830090003,"TC300 tettuccio parasole",24]
[]
[]
[null,null,"versione PoE  con tergicristallo integrato:"]
[null,9830511004,"CRONO CLK305POE+TC+ST+RS+WP  ",730]
[]
[]
[null,null,"CRONO CPK400"]
[null,9840010004,"CRONO CPK400+TC+ST+RS  -230-",178]
[null,9840010005,"CRONO CPK400+TC+ST+RS  -24-",178]
[null,9840010006,"CRONO CPK400+TC+ST+RS  -12-",178]
[null,9840010007,"CRONO CPK400+TC+ST  -NORISC-",167]
[null,9840010008,"CRONO CPK400+ST -NORISC-",156]
[null,9840080001,"VI400 set ventilazione interna pre-assemblato",82]
[null,9840080002,"VE400 set ventilazione ad estrazione pre-assemblato",131]
[null,9840080003,"RS400/A set riscaldamento in scatola -230-",45]
[null,9840080006,"RS400/B set riscaldamento in scatola -24-",45]
[null,9840080007,"RS400/C set riscaldamento in scatola -12-",45]
[null,9840080004,"VC400 vetrocamera",58]
[null,9840080005,"VA400 vetro antisfondamento pre-assemblato",49]
[null,9840080008,"AL400/A alimentatore 230/12Vdc 1,3A",49]
[null,9840080009,"AL400/B alimentatore 230/24Vac  500mA",49]
[null,9840080018,"TP400 set tamper antimanomissione  pre-assemblato",46]
[null,9840090001,"LC400 lucchetto per chiusura posteriore",21]
[null,9840090002,"TC400 tettuccio parasole",24]
[null,null,"versione con alimentazione PoE:"]
[null,9840510004,"CRONO CPK405POE+TC+ST+RS",308]
[null,9840510007,"CRONO CPK405POE+TC+ST",175]
[null,9840510008,"CRONO CPK405POE+ST",169]
[null,9840580001,"VI405 set ventilazione interna pre-assemblato",98]
[null,9840580002,"VE405 set ventilazione ad estrazione PoE  pre-assemblata",142]
[null,9840580003,"RS405 set riscaldamento PoE",170]
[null,9840580004,"VC405 vetrocamera",58]
[null,9840580005,"VA405 vetro antisfondamento",49]
[null,9830580006,"PSP1 PoE injector CRONO series  19W",125]
[null,9830580007,"PSP1 POE injector CRONO series  17W",177]
[null,9830580010,"PSP1 BOX scatola di giunzione esterna IP55",116]
[null,9840590002,"TC405 tettuccio parasole",24]
[]
[]
[]
[null,null,"versione  THERMAL  per telecamere termiche:"]
[null,9841110004,"CRONO CPK411+TC+ST+RS -230- Thermal   GE Ø 35",778]
[null,9841110005,"CRONO CPK411+TC+ST+RS -24- Thermal   GE Ø 35",778]
[null,9841110006,"CRONO CPK411+TC+ST+RS -12- Thermal   GE Ø 35",778]
[null,9841110024,"CRONO CPK411+TC+ST+RS -230- Thermal   GE Ø 55",1108]
[null,9841110025,"CRONO CPK411+TC+ST+RS -24- Thermal   GE Ø 55",1108]
[null,9841110026,"CRONO CPK411+TC+ST+RS -12- Thermal   GE Ø 55",1108]
[null,9841180001,"VI411 set ventilazione interna pre-assemblato",82]
[null,9841180002,"VE411 set ventilazione ad estrazione pre-assemblato",142]
[null,9841180003,"RS411/A set riscaldamento in scatola -230-",45]
[null,9841180004,"RS411/B set riscaldamento in scatola -24-",45]
[null,9841180005,"RS411/C set riscaldamento in scatola -12-",45]
[null,9841180006,"AL411/A alimentatore 230/12Vdc 1,3A",49]
[null,9841180007,"AL411/B alimentatore 230/24Vac 500mA",49]
[null,9841180008,"TP411 tamper antimanomissione",46]
[null,9841190001,"LC411 lucchetto per chiusura posteriore",21]
[null,9841190002,"TC411 tettuccio parasole",24]
[]
[]
[null,null,"versione  THERMAL PoE per telecamere termiche:"]
[null,9841510004,"CRONO CPK415POE+TC+ST+RS Thermal-  GE Ø 35",908]
[null,9841510007,"CRONO CPK415POE+TC+ST  Thermal-  GE Ø 35",775]
[null,9841510008,"CRONO CPK415POE+ST  Thermal-  GE Ø 35",769]
[null,9841510024,"CRONO CPK415POE+TC+ST+RS Thermal-  GE Ø 55",1238]
[null,9841510025,"CRONO CPK415POE+TC+ST  Thermal-  GE Ø 55",1105]
[null,9841510026,"CRONO CPK415POE+ST  Thermal-  GE Ø 55",1099]
[]
[]
[null,null,"versione  ARCTIC  per bassissime temperature:"]
[null,9840910004,"CRONO CPK409+TC+ST+RS -230-  Arctic",280]
[null,9840980001,"AL409/A alimentatore 230/12Vdc 1,3A",49]
[null,9840980002,"AL409/B alimentatore 230/24Vac 500mA",49]
[null,9840980003,"VC409 vetrocamera",58]
[null,9840980004,"VA409 vetro antisfondamento",49]
[null,9840980008,"TP409 tamper antimanomissione",46]
[null,9840990001,"LC409 lucchetto per chiusura posteriore",21]
[null,9840990002,"TC409 tettuccio parasole",24]
[]
[]
[null,null,"versione  con tergicristallo integrato:"]
[null,9840011004,"CRONO CPK400+TC+ST+RS+WP -230-",668]
[null,9840011005,"CRONO CPK400+TC+ST+RS+WP -24-",668]
[null,9840011007,"CRONO CPK400+TC+ST+WP -230-  *NORISC*",657]
[null,9840011008,"CRONO CPK400+TC+ST+WP -24-  *NORISC*",657]
[null,9840011009,"CRONO CPK400+ST+WP -230-  *NORISC*",646]
[null,9840011010,"CRONO CPK400+ST+WP -24-  *NORISC*",646]
[null,9840080003,"RS400/A set riscaldamento in scatola -230-",45]
[null,9840080006,"RS400/B set riscaldamento in scatola -24-",45]
[null,9840080007,"RS400/C set riscaldamento in scatola -12-",45]
[null,9840080008,"AL400/A alimentatore 230/12Vdc 1,3A",49]
[null,9840080009,"AL400/B alimentatore 230/24Vac  500mA",49]
[null,9840080018,"TP400 set tamper antimanomissione  pre-assemblato",46]
[null,9840090001,"LC400 lucchetto per chiusura posteriore",21]
[null,9840090002,"TC400 tettuccio parasole",24]
[]
[]
[null,null,"versione PoE con tergicristallo integrato:"]
[null,9840511004,"CRONO CPK405POE+TC+ST+RS+WP ",728]
[]
[]
[null,null,"CKS600"]
[null,9860030000,"KIT CKS600/150 solo corpo",104]
[null,9860030001,"KIT CKS600/150+TC -NORISC-",123]
[null,9860030007,"KIT CKS600/150+TC+ST  -NORISC-",129]
[null,9860030010,"KIT CKS600/150+TC+RS -230-",149]
[null,9860030011,"KIT CKS600/150+TC+RS -24-",149]
[null,9860030012,"KIT CKS600/150+TC+RS -12-",149]
[null,9860030004,"KIT CKS600/150+TC+ST+RS  -230-",169]
[null,9860030005,"KIT CKS600/150+TC+ST+RS  -24-",169]
[null,9860030006,"KIT CKS600/150+TC+ST+RS  -12-",169]
[null,9860010000,"KIT CKS600/260 solo corpo",117]
[null,9860010001,"KIT CKS600/260+TC -NORISC-",136]
[null,9860010007,"KIT CKS600/260+TC+ST  -NORISC-",142]
[null,9860010010,"KIT CKS600/260+TC+RS -230-",162]
[null,9860010011,"KIT CKS600/260+TC+RS -24-",162]
[null,9860010012,"KIT CKS600/260+TC+RS -12-",162]
[null,9860010004,"KIT CKS600/260+TC+ST+RS -230-",183]
[null,9860010005,"KIT CKS600/260+TC+ST+RS -24-",183]
[null,9860010006,"KIT CKS600/260+TC+ST+RS  -12-",183]
[null,9860020000,"KIT CKS600/310 solo corpo",130]
[null,9860020001,"KIT CKS600/310+TC -NORISC-",149]
[null,9860020007,"KIT CKS600/310+TC+ST -NORISC-",156]
[null,9860020008,"KIT CKS600/310+TC+RS -12-",176]
[null,9860020010,"KIT CKS600/310+TC+RS -230-",176]
[null,9860020011,"KIT CKS600/310+TC+RS -24-",176]
[null,9860020004,"KIT CKS600/310+TC+ST+RS  -230-",197]
[null,9860020005,"KIT CKS600/310+TC+ST+RS  -24-",197]
[null,9860020006,"KIT CKS600/310+TC+ST+RS  -12-",197]
[null,9860080011,"VI600 set ventilazione interna pre-assemblato",82]
[null,9860080012,"VE600 set ventilazione ad estrazione pre-assemblato",131]
[null,9860080002,"RS600/A set riscaldamento in scatola -230-",45]
[null,9860080003,"RS600/B set riscaldamento in scatola -24-",45]
[null,9860080010,"RS600/C set riscaldamento in scatola -12-",45]
[null,9860080006,"AL600/A  alimentatore 230/12Vdc  1,3A",49]
[null,9860080007,"AL600/B  alimentatore 230/24Vac  500mA",49]
[null,9860080004,"VC600 vetrocamera",58]
[null,9860080005,"VA600 vetro antisfondamento",49]
[null,9860080008,"TP600 tamper antimanomissione  -pre-assemblato-",72]
[null,9860080009,"PG600 set passaggio cavi in guaina",48]
[null,9860090001,"TC600 tettuccio parasole da 260mm",24]
[null,9860090002,"TC600 tettuccio parasole da 310mm.",24]
[null,9860090003,"TC600 tettuccio parasole da 150mm",24]
[null,null,"versione con alimentazione PoE:"]
[null,9860510004,"KIT CKS605POE-compact-+TC+ST+RS",327]
[null,9860510007,"KIT CKS605POE-compact-+TC+ST   -NORISC-",247]
[null,9860520004,"KIT CKS605POE-standard-+TC+ST+RS",335]
[null,9860520007,"KIT CKS605POE-standard-+TC+ST  -NORISC-",266]
[null,9860580001,"VI605 set ventilazione interna pre-assemblato",98]
[null,9860580002,"RS605 set riscaldamento PoE",170]
[null,9860580004,"VC605 vetrocamera",58]
[null,9860580005,"VA605 vetro antisfondamento",49]
[null,9860580008,"VE605 set ventilazione ad estrazione pre-assemblato",117]
[null,9830180006,"PSP1 PoE injector CRONO series  19W",125]
[null,9830180007,"PSP1 POE injector CRONO series  17W",177]
[null,9830180010,"PSP1 BOX scatola di giunzione esterna IP55",116]
[null,9860590001,"TC605 tettuccio parasole da 260mm",24]
[null,9860590002,"TC605 tettuccio parasole da 310mm",24]
[null,null,"versione  THERMAL  per telecamere termiche:"]
[null,9886010004,"KIT CTT860/260+TC+ST+RS  -230-  Thermal   GE Ø 35",783]
[null,9886010005,"KIT CTT860/260+TC+ST+RS  -24-  Thermal   GE Ø 35",783]
[null,9886010006,"KIT CTT860/260+TC+ST+RS  -12-  Thermal   GE Ø 35",783]
[null,9886010007,"KIT CTT860/260+TC+ST -NORISC-  Thermal   GE Ø 35",742]
[null,9886020004,"KIT CTT860/310+TC+ST+RS  -230-  Thermal   GE Ø 35",797]
[null,9886020005,"KIT CTT860/310+TC+ST+RS  -24-  Thermal   GE Ø 35",797]
[null,9886020006,"KIT CTT860/310+TC+ST+RS  -12-  Thermal   GE Ø 35",797]
[null,9886020007,"KIT CTT860/310+TC+ST -NORISC-  Thermal   GE Ø 35",756]
[null,9886030004,"KIT CTT860/150+TC+ST+RS -230-  Thermal   GE Ø 35",769]
[null,9886030005,"KIT CTT860/150+TC+ST+RS  -24- Thermal   GE Ø 35",769]
[null,9886030006,"KIT CTT860/150+TC+ST+RS -12-  Thermal   GE Ø 35",769]
[null,9886010024,"KIT CTT860/260+TC+ST+RS  -230-  Thermal   GE Ø 55",1113]
[null,9886010025,"KIT CTT860/260+TC+ST+RS  -24-  Thermal   GE Ø 55",1113]
[null,9886010026,"KIT CTT860/260+TC+ST+RS  -12-  Thermal   GE Ø 55",1113]
[null,9886010027,"KIT CTT860/260+TC+ST -NORISC-  Thermal   GE Ø 55",1072]
[null,9886010028,"KIT CTT860/310+TC+ST+RS  -230-  Thermal   GE Ø 55",1127]
[null,9886010029,"KIT CTT860/310+TC+ST+RS  -24-  Thermal   GE Ø 55",1127]
[null,9886010030,"KIT CTT860/310+TC+ST+RS  -12-  Thermal   GE Ø 55",1127]
[null,9886010031,"KIT CTT860/310+TC+ST -NORISC-  Thermal   GE Ø 55",1086]
[null,9886010032,"KIT CTT860/150+TC+ST+RS -230-  Thermal   GE Ø 55",1099]
[null,9886010033,"KIT CTT860/150+TC+ST+RS  -24- Thermal   GE Ø 55",1099]
[null,9886010034,"KIT CTT860/150+TC+ST+RS -12-  Thermal   GE Ø 55",1099]
[null,9886080001,"VE860 set ventilazione ad estrazione pre-assemblato",131]
[null,9886080004,"VI860 set ventilazione interna pre-assemblato",82]
[null,9886080002,"RS860/A set riscaldamento in scatola -230-",45]
[null,9886080003,"RS860/B set riscaldamento in scatola -24-",45]
[null,9886080005,"RS860/C set riscaldamento in scatola -12-",45]
[null,9886080006,"AL860/A alimentatore 230/12Vdc 1,3A",49]
[null,9886080007,"AL860/B alimentatore 230/24Vac 500mA",49]
[null,9886080008,"TP860 set tamper antimanomissione",72]
[null,9886080009,"PG860 set passaggio cavi in guaina",48]
[null,9886090001,"TC860 tettuccio parasole 260mm",24]
[null,9886090002,"TC860 tettuccio parasole da 310mm",24]
[null,9886090003,"CTT860 Air Purge System -ugello per pulizia vetro frontale-",80]
[]
[]
[null,null,"versione  THERMAL PoE  per telecamere termiche:"]
[null,9886510004,"KIT CTT865/260+TC+ST+RS  -PoE-  Thermal   GE Ø 35",927]
[null,9886520004,"KIT CTT865/310+TC+ST+RS  -PoE-  Thermal   GE Ø 35",935]
[null,9886530004,"KIT CTT865/150+TC+ST+RS  -PoE-  Thermal   GE Ø 35",927]
[null,9886510024,"KIT CTT865/260+TC+ST+RS  -PoE-  Thermal   GE Ø 55",1257]
[null,9886520024,"KIT CTT865/310+TC+ST+RS  -PoE-  Thermal   GE Ø 55",1265]
[null,9886530024,"KIT CTT865/150+TC+ST+RS  -PoE-  Thermal   GE Ø 55",1257]
[]
[]
[null,null,"CPR700"]
[null,9870030000,"KIT CPR700/150+ST -NORISC-",121]
[null,9870030007,"KIT CPR700/150+TC+ST  -NORISC-",130]
[null,9870030001,"KIT CPR700/150+ST+RS -230-",157]
[null,9870030002,"KIT CPR700/150+ST+RS -24-",157]
[null,9870030003,"KIT CPR700/150+ST+RS -12-",157]
[null,9870030004,"KIT CPR700/150+TC+ST+RS  -230-",176]
[null,9870030005,"KIT CPR700/150+TC+ST+RS  -24-",176]
[null,9870030006,"KIT CPR700/150+TC+ST+RS  -12-",176]
[null,9870010000,"KIT CPR700/260+ST -NORISC-",128]
[null,9870010007,"KIT CPR700/260+TC+ST  -NORISC-",144]
[null,9870010001,"KIT CPR700/260+ST+RS -230-",170]
[null,9870010002,"KIT CPR700/260+ST+RS -24-",170]
[null,9870010003,"KIT CPR700/260+ST+RS -12-",170]
[null,9870010004,"KIT CPR700/260+TC+ST+RS -230-",191]
[null,9870010005,"KIT CPR700/260+TC+ST+RS -24-",191]
[null,9870010006,"KIT CPR700/260+TC+ST+RS  -12-",191]
[null,9870020000,"KIT CPR700/310+ST -NORISC-",132]
[null,9870020007,"KIT CPR700/310+TC+ST -NORISC-",157]
[null,9870020001,"KIT CPR700/310+ST+RS -230-",164]
[null,9870020002,"KIT CPR700/310+ST+RS -24-",164]
[null,9870020003,"KIT CPR700/310+ST+RS -12-",164]
[null,9870020004,"KIT CPR700/310+TC+ST+RS  -230-",205]
[null,9870020005,"KIT CPR700/310+TC+ST+RS  -24-",205]
[null,9870020006,"KIT CPR700/310+TC+ST+RS  -12-",205]
[null,9870080012,"VI700 set ventilazione interna pre-assemblato",82]
[null,9870080001,"VE700 set ventilazione ad estrazione pre-assemblato",131]
[null,9870080002,"RS700/A set riscaldamento in scatola -230-",45]
[null,9870080003,"RS700/B set riscaldamento in scatola -24-",45]
[null,9870080010,"RS700/C set riscaldamento in scatola -12-",45]
[null,9870080006,"AL700/A  alimentatore 230/12Vdc  1,3A",49]
[null,9870080007,"AL700/B  alimentatore 230/24Vac  500mA",49]
[null,9870080004,"VC700 vetrocamera",58]
[null,9870080005,"VA700 vetro antisfondamento",49]
[null,9870080008,"TP700 tamper antimanomissione  -pre-assemblato-",72]
[null,9870090001,"TC700 tettuccio parasole da 260mm",24]
[null,9870090002,"TC700 tettuccio parasole da 310mm.",24]
[null,9870090003,"TC700 tettuccio parasole da 150mm",24]
[null,null,"versione con alimentazione PoE:"]
[null,9870510004,"KIT CPR705POE-compact-+TC+ST+RS",330]
[null,9870510007,"KIT CPR705POE-compact-+TC+ST  -NORISC-",252]
[null,9870520004,"KIT CPR705POE-standard-+TC+ST+RS",338]
[null,9870520007,"KIT CPR705POE-standard-+TC+ST  -NORISC-",270]
[null,9870580001,"VI705 set ventilazione interna pre-assemblato",98]
[null,9870580008,"VE705 set ventilazione ad estrazione pre-assemblato",117]
[null,9870580002,"RS705 set riscaldamento PoE",170]
[null,9870580004,"VC705 vetrocamera",58]
[null,9870580005,"VA705 vetro antisfondamento",49]
[null,9830180006,"PSP1 PoE injector CRONO series  19W",96]
[null,9830180007,"PSP1 POE injector CRONO series  17W",136]
[null,9830180010,"PSP1 BOX scatola di giunzione esterna IP55",88]
[null,9870590001,"TC705 tettuccio parasole da 260mm",24]
[null,9870590002,"TC705 tettuccio parasole da 310mm",24]
[null,null,"versione  THERMAL  per telecamere termiche:"]
[null,9894910004,"KIT CPT940/260+TC+ST+RS  -230-  Thermal   GE Ø 35",791]
[null,9894910005,"KIT CPT940/260+TC+ST+RS  -24-  Thermal   GE Ø 35",791]
[null,9894910006,"KIT CPT940/260+TC+ST+RS  -12-  Thermal   GE Ø 35",791]
[null,9894910007,"KIT CPT940/260+TC+ST -NORISC-  Thermal   GE Ø 35",744]
[null,9894920004,"KIT CPT940/310+TC+ST+RS  -230-  Thermal   GE Ø 35",805]
[null,9894920005,"KIT CPT940/310+TC+ST+RS  -24-  Thermal   GE Ø 35",805]
[null,9894920006,"KIT CPT940/310+TC+ST+RS  -12-  Thermal   GE Ø 35",805]
[null,9894920007,"KIT CPT940/310+TC+ST -NORISC-  Thermal   GE Ø 35",757]
[null,9884910024,"KIT CPT940/260+TC+ST+RS  -230-  Thermal   GE Ø 55",1121]
[null,9884910025,"KIT CPT940/260+TC+ST+RS  -24-  Thermal   GE Ø 55",1121]
[null,9884910026,"KIT CPT940/260+TC+ST+RS  -12-  Thermal   GE Ø 55",1121]
[null,9884910027,"KIT CPT940/260+TC+ST -NORISC-  Thermal   GE Ø 55",1074]
[null,9884920024,"KIT CPT940/310+TC+ST+RS  -230-  Thermal   GE Ø 55",1135]
[null,9884920025,"KIT CPT940/310+TC+ST+RS  -24-  Thermal   GE Ø 55",1135]
[null,9884920026,"KIT CPT940/310+TC+ST+RS  -12-  Thermal   GE Ø 55",1135]
[null,9884920027,"KIT CPT940/310+TC+ST -NORISC-  Thermal   GE Ø 35",1087]
[null,9894980001,"VE940 set ventilazione ad estrazione pre-assemblato",131]
[null,9894980012,"VI940 set ventilazione interna pre-assemblato",82]
[null,9894080002,"RS940/A set riscaldamento in scatola -230-",45]
[null,9894980003,"RS940/B set riscaldamento in scatola -24-",45]
[null,9894980010,"RS940/C set riscaldamento in scatola -12-",45]
[null,9894980006,"AL940/A alimentatore 230/12Vdc 1,3A",49]
[null,9894980007,"AL940/B alimentatore 230/24Vac 400mA",49]
[null,9894980008,"TP940 set tamper antimanomissione",72]
[null,9894990001,"TC940 tettuccio parasole da 260mm",24]
[null,9894990002,"TC940 tettuccio parasole da 310mm",24]
[null,null,"alimentatori in scatola stagna"]
[null,9810000021,"PS1 alimentatore in scatola stagna 230V-12Vdc 1A - 12Vac 50VA",211]
[null,9810000022,"PS2 alimentatore in scatola stagna 230V-12Vdc 1A",175]
[null,9810000023,"PS3 alimentatore in scatola stagna 230V-24Vac 2A",175]
[null,9810000034,"PS4 alimentatore in scatola stagna  230-24Vac 100VA",195]
[null,9810000035,"PSP3/A alimentatore switching esterno 110-230/24Vdc 2,5A",175]
[null,9810000031,"PSP3/B alimentatore switching esterno 110-230/12Vdc 5A",175]
[]
[]
[null,"KIT tanica lavavetro con pompa "]
[null,null,"WTP"]
[null,9810000042,"WTP25 tanica lavavetro da 25lt. prevalenza 5m. con pompa integrata -230-",448]
[null,9810000043,"WTP25 tanica lavavetro da 25lt. prevalenza 11m. con pompa integrata -230-",703]
[null,9810000045,"WTP25 tanica lavavetro da 25lt. prevalenza 5m. con pompa integrata -24-",448]
[null,9810000046,"WTP25 tanica lavavetro da 25lt. prevalenza 11m. con pompa integrata -24-",703]
[null,9810000048,"WTP5 tanica lavavetro da 5lt. prevalenza 5m. con pompa integrata -230-",401]
[null,9810000049,"WTP5 tanica lavavetro da 5lt. prevalenza 11m. con pompa integrata -230-",430]
[null,9810000051,"WTP5 tanica lavavetro da 5lt. prevalenza 5m. con pompa integrata -24-",401]
[null,9810000052,"WTP5 tanica lavavetro da 5lt. prevalenza 11m. con pompa integrata -24-",430]
[]
[]
[]
[]
[]
[]
[null,"Custodie con illuminatore IR integrato"]
[null,null,"CRONO CLA820"]
[null,9882010000,"CRONO CLA820+IR -230-",450]
[null,9882010001,"CRONO CLA820+IR -24-",450]
[null,9882010002,"CRONO CLA820+TC+IR -230-",462]
[null,9882010003,"CRONO CLA820+TC+IR -24-",462]
[null,9882010004,"CRONO CLA820+TC+ST+RS+IR -230-",480]
[null,9882010005,"CRONO CLA820+TC+ST+RS+IR -24-",480]
[null,9882080001,"VE820 set ventilazione ad estrazione pre-assemblato",131]
[null,9882080004,"VI820 set ventilazione interna pre-assemblato",82]
[null,9882080002,"RS820/A set riscaldamento in scatola -230-",45]
[null,9882080003,"RS820/B set riscaldamento in scatola -24-",45]
[null,9882080005,"RS820/C set riscaldamento in scatola -12-",45]
[null,9882080018,"TP820 set tamper antimanomissione pre-assemblato",46]
[null,9882090001,"TC820 tettuccio parasole da 260mm",24]
[null,9882090002,"LC820 lucchetto per chiusura posteriore",21]
[null,null,"versione con alimentazione PoE:"]
[null,9882110000,"CRONO CLA821+ST+IR  PoE",504]
[null,9882110001,"CRONO CLA821+TC+ST+IR  PoE",521]
[null,9882110002,"CRONO CLA821+TC+ST+RS+IR  PoE",608]
[null,9882180001,"VE821 set ventilazione ad estrazione pre-assemblato PoE",98]
[null,9882180002,"VI821 set ventilazione interna pre-assemblato  PoE",142]
[null,9882180003,"RS821 set riscaldamento in scatola  PoE",170]
[null,9882180004,"TP821 tamper antimanomissione",46]
[null,9882190001,"LC821 lucchetto per chiusura posteriore",21]
[null,9830180006,"PSP1 PoE injector CRONO series  19W",125]
[null,9830180007,"PSP1 POE injector CRONO series  17W",177]
[null,9830180010,"PSP1 BOX scatola di giunzione esterna IP55",116]
[null,9882190002,"TC821 tettuccio parasole",24]
[]
[null,null,"CRONO CLP870"]
[null,9887010000,"CRONO CLP870+IR -230-",462]
[null,9887010001,"CRONO CLP870+IR -24-",462]
[null,9887010002,"CRONO CLP870+TC+IR -230-",475]
[null,9887010003,"CRONO CLP870+TC+IR -24-",475]
[null,9887010004,"CRONO CLP870+TC+ST+RS+IR -230-",494]
[null,9887010005,"CRONO CLP870+TC+ST+RS+IR -24-",494]
[null,9887080001,"VE870 set ventilazione ad estrazione pre-assemblato",131]
[null,9887080004,"VI870 set ventilazione interna pre-assemblato",82]
[null,9887080002,"RS870/A set riscaldamento in scatola -230-",45]
[null,9887080003,"RS870/B set riscaldamento in scatola -24-",45]
[null,9887080005,"TP870 tamper antimanomissione",46]
[null,9887090001,"LC870 lucchetto per chiusura posteriore",21]
[null,9887090002,"TC870 tettuccio parasole",24]
[null,null,"versione con alimentazione PoE:"]
[null,9887110000,"CRONO CLP871+ST+IR  PoE",521]
[null,9887110001,"CRONO CLP871+TC+ST+IR  PoE",521]
[null,9887110002,"CRONO CLP871+TC+ST+RS+IR  PoE",624]
[null,9887180001,"VE871 set ventilazione ad estrazione pre-assemblato  PoE",142]
[null,9887180002,"VI871 set ventilazione interna pre-assemblato  PoE",98]
[null,9887180003,"RS871 set riscaldamento in scatola  PoE",170]
[null,9887180004,"TP871 tamper antimanomissione",46]
[null,9887190001,"LC871 lucchetto per chiusura posteriore",21]
[null,9830180006,"PSP1 PoE injector CRONO series  19W",125]
[null,9830180007,"PSP1 POE injector CRONO series  17W",177]
[null,9830180010,"PSP1 BOX scatola di giunzione esterna IP55",116]
[null,9887190002,"TC871 tettuccio parasole",24]
[]
[]
[null,null,"CSX850"]
[null,9885010001,"KIT CSX850/280+IR solo corpo",712]
[null,9885010004,"KIT CSX850/280+TC+ST+RS+IR  -230-",1048]
[null,9885010005,"KIT CSX850/280+TC+ST+RS+IR  -24-",1048]
[null,9885080001,"RS850/A set riscaldamento in scatola -230-",45]
[null,9885080002,"RS850/B set riscaldamento in scatola -24-",45]
[null,9885080004,"VI850 set ventilazione interna  pre-assemblata",82]
[null,9885080005,"AL850/A alimentatore 230/12Vdc 1,3A",49]
[null,9885080006,"AL850/B alimentatore 230/24Vac  500mA",49]
[null,9885090001,"TC850 tettuccio parasole da 280mm",110]
[null,9885090002,"SNF850 piastra inferiore per montaggio su brandeggio",80]
[]
[null,null,"CSX851POE"]
[null,9885110000,"KIT CSX851+IR  PoE -solo corpo-",1048]
[null,9885110004,"KIT CSX851+TC+ST+RS+IR  PoE",1350]
[null,9885180003,"VI851 set ventilazione interna pre-assemblato  PoE",98]
[null,9885180002,"RS851 set riscaldamento in scatola  PoE con scheda controllo led IR",338]
[null,9830180006,"PSP1 PoE injector CRONO series  19W",125]
[null,9830180007,"PSP1 POE injector CRONO series  17W",177]
[null,9830180010,"PSP1 BOX scatola di giunzione esterna IP55",116]
[null,9885190001,"TC851 tettuccio parasole",110]
[]
[]
[]
[]
[null,"Custodie ATEX antideflagranti in alluminio Anticorodal per aree a rischio esplosione"]
[null,null,"EXCMA910"]
[null,9891010004,"EXCMA910/406+RS -110/230Vac-",1520]
[null,9891010005,"EXCMA910/406+RS -24Vac-dc-",1520]
[null,9891010006,"EXCMA910/406+RS -12Vdc-",1520]
[null,9891080012,"VI910 set ventilazione interna preassemblata",82]
[null,9891080006,"AL910/A alimentatore 110-240/12Vdc 1,3A preassemblato",71]
[null,9891080007,"AL910/B alimentatore 230/24Vac 500mA preassemblato",71]
[null,9891080008,"AL910/C alimentatore 110-240/12Vdc 2,1A preassemblato",71]
[null,9891080009,"AL910/D alimentatore 110-240/24Vdc 1,1A preassemblato",71]
[null,9891080010,"AL910/E alimentatore 24Vdc/12Vdc 15W preassemblato",71]
[null,9891080001,"RD910/A riscaldamento potenziato 110-240Vac 60W preassemblato",63]
[null,9891080002,"RD910/B riscaldamento potenziato 12-24Vac dc 60W preassemblato",63]
[null,9891090001,"TC910/406 tettuccio parasole",110]
[null,9891090002,"TP910 tamper antimanomissione",67]
[null,9891090003,"PMTC set composto da due pressacavi M25 con gommino per cavo non armato",118]
[null,9891090004,"PNPT set composto da due pressacavi 3/4\" NPT con gommino per cavo non armato",137]
[null,9891090005,"TPM25 set composto da due tappi M25",65]
[null,9891090008,"PMTC-P set composto da 1 pressacavo M25 con gommino per cavo non armato e 1 tappo",118]
[null,9891090011,"EXCMA910 set composto da nr. 2 guarnizioni di tenuta",24]
[null,9891090015,"AMN25-3/4 adattatore ATEX in ottone nichelato da M25 a 3/4\"NPT",48]
[null,9891090016,"AMX25-3/4 adattatore ATEX in AISI 316L da M25 a 3/4\"NPT",140]
[]
[null,null,"versione con alimentazione PoE:"]
[null,9891510004,"EXCMA915/406+RS -PoE-",1650]
[null,9891580001,"RD915/A riscaldamento potenziato PoE+ 15W preassemblato",63]
[null,9891580004,"VI915 set ventilazione interna preassemblata",98]
[null,9891090001,"TC910/406 tettuccio parasole",110]
[null,9891090002,"TP910 tamper antimanomissione",67]
[null,9891090003,"PMTC set composto da due pressacavi M25 con gommino per cavo non armato",118]
[null,9891090004,"PNPT set composto da due pressacavi 3/4\" NPT con gommino per cavo non armato",137]
[null,9891090005,"TPM25 set composto da due tappi M25",65]
[null,9891090008,"PMTC-P set composto da 1 pressacavo M25 con gommino per cavo non armato e 1 tappo",118]
[]
[null,null,"versione con Media converter in fibra ottica:"]
[null,9891610004,"EXCMA916/406+RS+MC -110/230Vac-",2044]
[null,9891610006,"EXCMA916/406+RS+MC -12Vdc-",2044]
[null,9891680001,"RD916/A riscaldamento potenziato 110-240Vac 60W preassemblato",63]
[null,9891090001,"TC910/406 tettuccio parasole",110]
[null,9891090002,"TP910 tamper antimanomissione",67]
[null,9891090003,"PMTC set composto da due pressacavi M25 con gommino per cavo non armato",118]
[null,9891090004,"PNPT set composto da due pressacavi 3/4\" NPT con gommino per cavo non armato",137]
[null,9891090005,"TPM25 set composto da due tappi M25",65]
[null,9891090008,"PMTC-P set composto da 1 pressacavo M25 con gommino per cavo non armato e 1 tappo",118]
[]
[null,null,"versione THERMAL per telecamere termiche:"]
[null,9894010014,"EXCMA940/406 Thermal+RS -110/230Vac-",6850]
[null,9894010015,"EXCMA940/406 Thermal+RS -24Vac-dc-",6850]
[null,9894010016,"EXCMA940/406 Thermal+RS -12Vdc-",6850]
[null,9894080001,"AL940/A alimentatore 110-240/12Vdc 1,3A preassemblato",71]
[null,9894080002,"AL940/B alimentatore 230/24Vac 500mA preassemblato",71]
[null,9894080003,"AL940/C alimentatore 110-240/12Vdc 2,1A preassemblato",71]
[null,9894080004,"AL940/D alimentatore 110-240/24Vdc 1,1A preassemblato",71]
[null,9894080010,"AL940/E alimentatore 24Vdc/12Vdc 15W preassemblato",71]
[null,9894080005,"RD940/A riscaldamento potenziato 110-240Vac 60W preassemblato",63]
[null,9894080006,"RD940/A riscaldamento potenziato 12-24Vac dc 60W preassemblato",63]
[null,9891090001,"TC910/406 tettuccio parasole",110]
[null,9891090002,"TP910 tamper antimanomissione",67]
[null,9891090003,"PMTC set composto da due pressacavi M25 con gommino per cavo non armato",98]
[null,9891090004,"PNPT set composto da due pressacavi 3/4\" NPT con gommino per cavo non armato",117]
[null,9891090005,"TPM25 set composto da due tappi M25",45]
[null,9891090008,"PMTC-P set composto da 1 pressacavo M25 con gommino per cavo non armato e 1 tappo",98]
[null,null,"versione THERMAL POE per telecamere termiche:"]
[null,9894510004,"EXCMA945/406 Thermal+RS -POE-",6990]
[null,9891580001,"RD945/A riscaldamento potenziato PoE+ 15W preassemblato",63]
[null,9891090001,"TC910/406 tettuccio parasole",110]
[null,9891090002,"TP910 tamper antimanomissione",67]
[null,9891090003,"PMTC set composto da due pressacavi M25 con gommino per cavo non armato",98]
[null,9891090004,"PNPT set composto da due pressacavi 3/4\" NPT con gommino per cavo non armato",117]
[null,9891090005,"TPM25 set composto da due tappi M25",45]
[null,9891090008,"PMTC-P set composto da 1 pressacavo M25 con gommino per cavo non armato e 1 tappo",98]
[]
[]
[null,"Custodie ATEX antideflagranti in acciaio inox AISI 316L per aree a rischio esplosione"]
[null,null,"EXCMA910X"]
[null,9891011004,"EXCMA910X/406+RS -110/230Vac-",2750]
[null,9891011005,"EXCMA910X/406+RS -24Vac-dc-",2750]
[null,9891011006,"EXCMA910X/406+RS -12Vdc-",2750]
[null,9891080006,"AL910/A alimentatore 110-240/12Vdc 1,3A preassemblato",71]
[null,9891080007,"AL910/B alimentatore 230/24Vac 500mA preassemblato",71]
[null,9891080008,"AL910/C alimentatore 110-240/12Vdc 2,1A preassemblato",71]
[null,9891080009,"AL910/D alimentatore 110-240/24Vdc 1,1A preassemblato",71]
[null,9891080010,"AL910/E alimentatore 24Vdc/12Vdc 15W preassemblato",71]
[null,9891080001,"RD910/A riscaldamento potenziato 110-240Vac 60W preassemblato",63]
[null,9891080002,"RD910/B riscaldamento potenziato 12-24Vac dc 60W preassemblato",63]
[null,9891090001,"TC910/406 tettuccio parasole",110]
[null,9891090002,"TP910 tamper antimanomissione",67]
[null,9891090006,"PMTC-X set composto da due pressacavi M25 in AISI 316L con gommino per cavo non armato",339]
[null,9891090007,"PMTC-PX set composto da 1 pressacavo M25 in AISI 316L con gommino per cavo non armato e 1 tappo in AISI 316L",284]
[null,null,"versione con alimentazione PoE:"]
[null,9891511004,"EXCMA915X/406+RS -PoE-",2890]
[null,9891580001,"RD915/A riscaldamento potenziato PoE+ 15W preassemblato",63]
[null,9891090001,"TC910/406 tettuccio parasole",110]
[null,9891090002,"TP910 tamper antimanomissione",67]
[null,9891090006,"PMTC-X set composto da due pressacavi M25 in AISI 316L con gommino per cavo non armato",339]
[null,9891090007,"PMTC-PX set composto da 1 pressacavo M25 in AISI 316L con gommino per cavo non armato e 1 tappo in AISI 316L",284]
[null,null,"versione con Media converter in fibra ottica:"]
[null,9891611004,"EXCMA916X/406+RS+MC -110/230Vac-",3274]
[null,9891680001,"RD916/A riscaldamento potenziato 110-240Vac 60W preassemblato",63]
[null,9891090001,"TC910/406 tettuccio parasole",110]
[null,9891090002,"TP910 tamper antimanomissione",67]
[null,9891090006,"PMTC-X set composto da due pressacavi M25 in AISI 316L con gommino per cavo non armato",339]
[null,9891090007,"PMTC-PX set composto da 1 pressacavo M25 in AISI 316L con gommino per cavo non armato e 1 tappo in AISI 316L",284]
[null,null,"versione THERMAL per telecamere termiche:"]
[null,9894011014,"EXCMA940X/406 Thermal+RS -110/230Vac-",7950]
[null,9894011015,"EXCMA940X/406 Thermal+RS -24Vac-dc-",7950]
[null,9894011016,"EXCMA940X/406 Thermal+RS -12Vdc-",7950]
[null,9894080001,"AL940/A alimentatore 110-240/12Vdc 1,3A preassemblato",71]
[null,9894080002,"AL940/B alimentatore 230/24Vac 500mA preassemblato",71]
[null,9894080003,"AL940/C alimentatore 110-240/12Vdc 2,1A preassemblato",71]
[null,9894080004,"AL940/D alimentatore 110-240/24Vdc 1,1A preassemblato",71]
[null,9894080005,"RD940/A riscaldamento potenziato 110-240Vac 60W preassemblato",63]
[null,9894080006,"RD940/A riscaldamento potenziato 12-24Vac dc 60W preassemblato",63]
[null,9891090001,"TC910/406 tettuccio parasole",110]
[null,9891090002,"TP910 tamper antimanomissione",67]
[null,9891090006,"PMTC-X set composto da due pressacavi M25 in AISI 316L con gommino per cavo non armato",339]
[null,9891090007,"PMTC-PX set composto da 1 pressacavo M25 in AISI 316L con gommino per cavo non armato e 1 tappo in AISI 316L",284]
[null,null,"versione THERMAL POE per telecamere termiche:"]
[null,9894511004,"EXCMA945X/406 Thermal+RS -POE-",8080]
[null,9891580001,"RD945/A riscaldamento potenziato PoE+ 15W preassemblato",63]
[null,9891090001,"TC910/406 tettuccio parasole",110]
[null,9891090002,"TP910 tamper antimanomissione",67]
[null,9891090006,"PMTC-X set composto da due pressacavi M25 in AISI 316L con gommino per cavo non armato",339]
[null,9891090007,"PMTC-PX set composto da 1 pressacavo M25 in AISI 316L con gommino per cavo non armato e 1 tappo in AISI 316L",284]
[]
[]
[]
[]
[null,"Unità di posizionamento P&T in acciaio inox AISI 316L"]
[null,null,"PTX200"]
[null,9820010001,"PTX200SH  unità P&T con singola custodia  ",7749]
[null,{"$f":"B614+1","v":9820010002},"PTX200SH  unità P&T con singola custodia ",7749]
[null,{"$f":"B615+1","v":9820010003},"PTX200SH  unità P&T con singola custodia ",7749]
[null,9820010004,"PTX200DH-TH  unità P&T con doppia custodia (visibile e termica)  ",7990]
[null,9820010005,"PTX200DH-TH  unità P&T con doppia custodia (visibile e termica)  ",7990]
[null,9820010006,"PTX200DH-TH  unità P&T con doppia custodia (visibile e termica)  ",7990]
[null,9820010007,"PTX200TH  unità P&T con singola custodia  termica",7940]
[null,9820010008,"PTX200TH  unità P&T con singola custodia  termica",7940]
[null,9820010009,"PTX200TH  unità P&T con singola custodia  termica",7940]
[null,9820010010,"PTX200DH-IR  unità P&T con singola custodia e illuminatore IR",8150]
[null,9820010011,"PTX200DH-IR  unità P&T con singola custodia e illuminatore IR",8150]
[null,9820010012,"PTX200DH-IR  unità P&T con singola custodia e illuminatore IR",8150]
[]
[]
[]
[null,"KIT tanica lavavetro con pompa "]
[null,null,"WTP"]
[null,9810000042,"WTP25 tanica lavavetro da 25lt. prevalenza 5m. con pompa integrata -230-",448]
[null,9810000043,"WTP25 tanica lavavetro da 25lt. prevalenza 11m. con pompa integrata -230-",703]
[null,9810000045,"WTP25 tanica lavavetro da 25lt. prevalenza 5m. con pompa integrata -24-",448]
[null,9810000046,"WTP25 tanica lavavetro da 25lt. prevalenza 11m. con pompa integrata -24-",703]
[null,9810000048,"WTP5 tanica lavavetro da 5lt. prevalenza 5m. con pompa integrata -230-",401]
[null,9810000049,"WTP5 tanica lavavetro da 5lt. prevalenza 11m. con pompa integrata -230-",430]
[null,9810000051,"WTP5 tanica lavavetro da 5lt. prevalenza 5m. con pompa integrata -24-",401]
[null,9810000052,"WTP5 tanica lavavetro da 5lt. prevalenza 11m. con pompa integrata -24-",430]
[]
[]
[]
[]
[]
[]
[]
[null,"Custodie in acciaio INOX"]
[null,null,"CSX800"]
[null,9880010001,"KIT CSX800/280 solo corpo",402]
[null,9880010004,"KIT CSX800/280+TC+ST+RS  -230-",738]
[null,9880010005,"KIT CSX800/280+TC+ST+RS  -24-",738]
[null,9880010006,"KIT CSX800/280+TC+ST+RS  -12-",738]
[null,9880080001,"RS800/A set riscaldamento in scatola -230-",45]
[null,9880080002,"RS800/B set riscaldamento in scatola -24-",45]
[null,9880080003,"RS800/C set riscaldamento in scatola -12-",45]
[null,9880080007,"RD800/A riscaldamento rinforzato -230-  pre-assemblato",54]
[null,9880080008,"RD800/B riscaldamento rinforzato -24-  pre-assemblato",54]
[null,9880080009,"RD800/C riscaldamento rinforzato -12-  pre-assemblato",54]
[null,9880080004,"VI800 set ventilazione interna  pre-assemblata",82]
[null,9880080005,"AL800/A alimentatore 230/12Vdc 1,3A",49]
[null,9880080006,"AL800/B alimentatore 230/24Vac  500mA",49]
[null,9880090001,"TC800 tettuccio parasole da 280mm",110]
[null,9880090002,"CSX800 Air Purge System -ugello pulizia vetro frontale-",80]
[]
[null,null,"versione  con tergicristallo integrato:"]
[null,9880011001,"KIT CSX800/280+WP solo corpo  -230-",822]
[null,9880011002,"KIT CSX800/280+WP solo corpo  -24-",822]
[null,9880011004,"KIT CSX800/280+TC+ST+RS+WP  -230-",1158]
[null,9880011005,"KIT CSX800/280+TC+ST+RS+WP  -24-",1158]
[null,9880080001,"RS800/A set riscaldamento in scatola -230-",45]
[null,9880080002,"RS800/B set riscaldamento in scatola -24-",45]
[null,9880080007,"RD800/A riscaldamento rinforzato -230-  pre-assemblato",54]
[null,9880080008,"RD800/B riscaldamento rinforzato -24-  pre-assemblato",54]
[null,9880080004,"VI800 set ventilazione interna  pre-assemblata",82]
[null,9880090001,"TC800 tettuccio parasole da 280mm",110]
[null,9880090008,"CSX800 set ricambio spazzola tergicristallo",80]
[]
[null,null,"versione con alimentazione PoE:"]
[null,9880510001,"KIT CSX805POE solo corpo",402]
[null,9880510006,"KIT CSX805POE+TC+ST+RS",861]
[null,9880580001,"RS805 set riscaldamento in scatola  PoE",170]
[null,9880580004,"VI805 set ventilazione interna pre-assemblata",98]
[null,9880590001,"TC805 tettuccio parasole da 280mm",110]
[null,9830180006,"PSP1 PoE injector CRONO series  19W",125]
[null,9830180007,"PSP1 POE injector CRONO series  17W",177]
[null,9830180010,"PSP1 BOX scatola di giunzione esterna IP55",116]
[]
[null,null,"versione con alimentazione PoE e tergicristallo integrato"]
[null,9880511006,"KIT CSX805POE+TC+ST+RS+WP",1281]
[]
[null,null,"versione  THERMAL  per telecamere termiche:"]
[null,9884010001,"KIT CSX840/280 solo corpo  Thermal   finestra Ø 35",1002]
[null,9884010004,"KIT CSX840/280+TC+ST+RS -230-  Thermal   finestra Ø 35",1338]
[null,9884010005,"KIT CSX840/280+TC+ST+RS -24-  Thermal   finestra Ø 35",1338]
[null,9884010006,"KIT CSX840/280+TC+ST+RS -12-  Thermal   finestra Ø 35",1338]
[null,9884080001,"RS840/A set riscaldamento in scatola -230-",45]
[null,9884080002,"RS840/B set riscaldamento in scatola -24-",45]
[null,9884080003,"RS840/C set riscaldamento in scatola -12-",45]
[null,9884080007,"RD840/A riscaldamento rinforzato -230-  pre-assemblato",54]
[null,9884080008,"RD840/B riscaldamento rinforzato -24-  pre-assemblato",54]
[null,9884080009,"RD840/C riscaldamento rinforzato -12-  pre-assemblato",54]
[null,9884080004,"VI840 set ventilazione interna pre-assemblata",82]
[null,9884080005,"AL840/A alimentatore 230/12Vdc 1,3A",49]
[null,9884080006,"AL840/B alimentatore 230/24Vac 500mA",49]
[null,9884090001,"TC840 tettuccio parasole da 280mm.",110]
[]
[null,null,"versione  THERMAL POE  per telecamere termiche:"]
[null,9884510001,"KIT CSX845POE solo corpo  Thermal   finestra Ø 35",1002]
[null,9884510006,"KIT CSX845POE+TC+ST+RS  Thermal   finestra Ø 35",1461]
[null,9884510007,"KIT CSX845POE+TC+ST+RS  Thermal   finestra Ø 55",1791]
[null,9884580001,"RS845 set riscaldamento in scatola  PoE",170]
[null,9884580004,"VI845 set ventilazione interna pre-assemblata",98]
[null,9884590001,"TC845 tettuccio parasole da 280mm",110]
[null,9830180006,"PSP1 PoE injector CRONO series  19W",125]
[null,9830180007,"PSP1 POE injector CRONO series  17W",177]
[null,9830180010,"PSP1 BOX scatola di giunzione esterna IP55",116]
[]
[null,null,"CSX700"]
[null,9879010001,"KIT CSX700/360 solo corpo",580]
[null,9879010004,"KIT CSX700/360+TC+ST+RS  -230-",904]
[null,9879010005,"KIT CSX700/360+TC+ST+RS  -24-",904]
[null,9879010006,"KIT CSX700/360+TC+ST+RS  -12-",904]
[null,9879080001,"RSX700/A set riscaldamento in scatola -230-",45]
[null,9879080002,"RSX700/B set riscaldamento in scatola -24-",45]
[null,9879080003,"RSX700/C set riscaldamento in scatola -12-",45]
[null,9879080004,"VIX700 set ventilazione interna pre-assemblata",82]
[null,9879080005,"ALX700/A alimentatore 230/12Vdc 1,3A",49]
[null,9879080006,"ALX700/B alimentatore 230/24Vac  500mA",49]
[null,9879090001,"TCX700 tettuccio parasole ",110]
[]
[]
[]
[]
[null,null,"CSX900  BIG"]
[null,9890010001,"KIT CSX900/470+TC",1240]
[null,9890010004,"KIT CSX900/470+TC+ST+RS  -230-",1586]
[null,9890010005,"KIT CSX900/280+TC+ST+RS  -24-",1586]
[null,9890010006,"KIT CSX900/280+TC+ST+RS  -12-",1586]
[null,9890080001,"RS900/A set riscaldamento in scatola -230-",45]
[null,9890080002,"RS900/B set riscaldamento in scatola -24-",45]
[null,9890080003,"RS900/C set riscaldamento in scatola -12-",45]
[null,9890080007,"RD900/A riscaldamento rinforzato -230-  pre-assemblato",54]
[null,9890080008,"RD900/B riscaldamento rinforzato -24-  pre-assemblato",54]
[null,9890080009,"RD900/C riscaldamento rinforzato -12-  pre-assemblato",54]
[null,9890080004,"VI900 set ventilazione interna pre-assemblata",82]
[null,9890080005,"AL900/A alimentatore 230/12Vdc 1,3A",49]
[null,9890080006,"AL900/B alimentatore 230/24Vac  500mA",49]
[null,9890090001,"TC900 tettuccio parasole ",110]
[]
[]
[]
[null,"KIT tanica lavavetro con pompa "]
[null,null,"WTP"]
[null,9810000042,"WTP25 tanica lavavetro da 25lt. prevalenza 5m. con pompa integrata -230-",448]
[null,9810000043,"WTP25 tanica lavavetro da 25lt. prevalenza 11m. con pompa integrata -230-",703]
[null,9810000045,"WTP25 tanica lavavetro da 25lt. prevalenza 5m. con pompa integrata -24-",448]
[null,9810000046,"WTP25 tanica lavavetro da 25lt. prevalenza 11m. con pompa integrata -24-",703]
[null,9810000048,"WTP5 tanica lavavetro da 5lt. prevalenza 5m. con pompa integrata -230-",401]
[null,9810000049,"WTP5 tanica lavavetro da 5lt. prevalenza 11m. con pompa integrata -230-",430]
[null,9810000051,"WTP5 tanica lavavetro da 5lt. prevalenza 5m. con pompa integrata -24-",401]
[null,9810000052,"WTP5 tanica lavavetro da 5lt. prevalenza 11m. con pompa integrata -24-",430]
[]
[]
[]
[]
[]
[]
[null,"Custodie INOX raffreddate/fibra ottica"]
[null,null,"CSX814 con raffreddamento ad aria compressa"]
[null,9881410004,"KIT CSX814/280+TC+ST  -230-   **Air Cooling**",1640]
[null,9881480005,"AL814/A alimentatore 230/12Vdc  1,3A",49]
[null,9881480006,"AL814/B alimentatore 230/24Vac  500mA",49]
[null,9815090002,"AGF150 gruppo filtraggio aria compressa",580]
[null,9885090002,{"$f":"C469","v":"SNF850 piastra inferiore per montaggio su brandeggio"},90]
[]
[]
[null,null,"CRL150 con raffreddamento a liquido/aria compressa"]
[null,9815010000,"KIT CRL150/280 con barriera d'aria e vetro temprato per telecamera visibile fino a +300°C",1188]
[null,9815010001,"KIT CRL150/280 con barriera d'aria e filtro in ZnSe Ø55mm. per telecamera termica fino a +200°C",2932]
[null,9815010002,"KIT CRL150/280 con barriera d'aria e filtro al Germanio Ø35mm. per telecamera termica fino a +80°C",1880]
[null,9815010003,"KIT CRL150/280 con barriera d'aria e filtro anti IR Ø46mm. per telecamera visibile",1850]
[null,9815010005,"KIT CRL150/280 con barriera d'aria e filtro al Germanio Ø55mm. per telecamera termica fino a +80°C",2240]
[null,9815010006,"KIT CRL150/280 con barriera d'aria e vetro in Zaffiro Ø55mm.",2168]
[null,9815080001,"AL150/A  alimentatore 230/12Vdc  1,3A",49]
[null,9815080002,"AL150/B  alimentatore 230/24Vac  500mA",49]
[null,9815090002,"AGF150 gruppo filtraggio aria compressa",580]
[null,9815090003,"VHF150/B vetro per alte temperature fino a +600°C",240]
[null,9815090006,"VAIR150 flangia anteriore con vetro anti infrarosso",550]
[null,9815090009,"VAST150 set ricambio vetro standard temp. max. +300°C",38]
[null,9815090010,"VAZS150 flangia anteriore con filtro in ZnSe Ø55mm.",950]
[null,9815090011,"VAGE150 flangia anteriore con filtro in GE Ø50mm.",790]
[null,9815090012,"VASP150 flangia anteriore con filtro in Zaffiro Ø55mm.",980]
[null,9815090013,"CRL150 set ricambio guarnizioni O-ring",32]
[null,9815090014,"VASHF150/B flanga anteriore con vetro per alte temperature +600°C",420]
[null,9815090015,"AGF150/B gruppo filtraggio aria compressa con scarico automatico",990]
[]
[null,null,"CSX610T TUNNEL"]
[null,9861010003,"KIT CSX610T/280  -NORISC- solo corpo",520]
[null,9861010004,"KIT CSX610T/280+ST+RS  -230-",800]
[null,9861010005,"KIT CSX610T/280+ST+RS  -24-",800]
[null,9861010006,"KIT CSX610T/280+ST+RS  -12-",800]
[null,9861080001,"RS610/A set riscaldamento in scatola -230-",45]
[null,9861080002,"RS610/B set riscaldamento in scatola -24-",45]
[null,9861080003,"RS610/C set riscaldamento in scatola -12-",45]
[null,9861080007,"RD610/A riscaldamento rinforzato -230-  pre-assemblato",54]
[null,9861080008,"RD610/B riscaldamento rinforzato -24-  pre-assemblato",54]
[null,9861080009,"RD610/C riscaldamento rinforzato -12-  pre-assemblato",54]
[null,9861080004,"VI610 set ventilazione interna pre-assemblata",82]
[null,9861080005,"AL610/A alimentatore 230/12Vdc 1,3A",49]
[null,9861080006,"AL610/B alimentatore 230/24Vac  500mA",49]
[]
[null,null,"versione con alimentazione PoE:"]
[null,9861510006,"KIT CSX615TPOE -NORISC- solo corpo",520]
[null,9861510004,"KIT CSX615TPOE+ST+RS",930]
[null,9861580001,"RS615 set riscaldamento in scatola  PoE",170]
[null,9861580004,"VI615 set ventilazione interna pre-assemblata",98]
[null,9830180006,"PSP1 PoE injector CRONO series  19W",125]
[null,9830180007,"PSP1 POE injector CRONO series  17W",177]
[null,9830180010,"PSP1 BOX scatola di giunzione esterna IP55",116]
[]
[null,null,"CSX810T TUNNEL"]
[null,9881010003,"KIT CSX810T/280+TC+ST  -NORISC-",780]
[null,9881010004,"KIT CSX810T/280+TC+ST+RS  -230-",810]
[null,9881010005,"KIT CSX810T/280+TC+ST+RS  -24-",810]
[null,9881010006,"KIT CSX810T/280+TC+ST+RS  -12-",810]
[null,9881080001,"RS810/A set riscaldamento in scatola -230-",45]
[null,9881080002,"RS810/B set riscaldamento in scatola -24-",45]
[null,9881080003,"RS810/C set riscaldamento in scatola -12-",45]
[null,9881080007,"RD810/A riscaldamento rinforzato -230-  pre-assemblato",54]
[null,9881080008,"RD810/B riscaldamento rinforzato -24-  pre-assemblato",54]
[null,9881080009,"RD810/C riscaldamento rinforzato -12-  pre-assemblato",54]
[null,9881080004,"VI810 set ventilazione interna pre-assemblata",82]
[null,9881080005,"AL810/A alimentatore 230/12Vdc 1,3A",49]
[null,9881080006,"AL810/B alimentatore 230/24Vac  500mA",49]
[null,9881090001,"TC810 tettuccio parasole da 280mm",110]
[]
[null,null,"versione con alimentazione PoE:"]
[null,9881510006,"KIT CSX815TPOE+TC+ST -NORISC-",780]
[null,9881510004,"KIT CSX815TPOE+TC+ST+RS",940]
[null,9881580001,"RS815 set riscaldamento in scatola  PoE",170]
[null,9881580004,"VI815 set ventilazione interna pre-assemblata",98]
[null,9881590001,"TC815 tettuccio parasole da 280mm",110]
[null,9830180006,"PSP1 PoE injector CRONO series  19W",125]
[null,9830180007,"PSP1 POE injector CRONO series  17W",177]
[null,9830180010,"PSP1 BOX scatola di giunzione esterna IP55",116]
[]
[null,null,"CSX828P Pressurized"]
[null,9882810004,"KIT CSX828P/280+TC+ST+RS  -230-   *PRESSURIZED*",980]
[null,9882810005,"KIT CSX828P/280+TC+ST+RS  -24-     *PRESSURIZED*",980]
[null,9882810006,"KIT CSX828P/280+TC+ST+RS  -12-     *PRESSURIZED*",980]
[null,9882880001,"RS828/A set riscaldamento in scatola -230-",45]
[null,9882880002,"RS828/B set riscaldamento in scatola -24-",45]
[null,9882880003,"RS828/C set riscaldamento in scatola -12-",45]
[null,9882880007,"RD828/A riscaldamento rinforzato -230-  pre-assemblato",54]
[null,9882880008,"RD828/B riscaldamento rinforzato -24-  pre-assemblato",54]
[null,9882880009,"RD828/C riscaldamento rinforzato -12-  pre-assemblato",54]
[null,9882880004,"VI828 set ventilazione interna pre-assemblata",82]
[null,9882880005,"AL828/A alimentatore 230/12Vdc 1,3A",49]
[null,9882880006,"AL828/B alimentatore 230/24Vac  500mA",49]
[null,9882890001,"TC828 tettuccio parasole da 280mm",110]
[]
[null,null,"CSX806 con sistema di trasmissione su fibra ottica"]
[null,9880610004,"KIT CSX806/280+TC+ST+RS+MC  -230-",1262]
[null,9880680006,"RD806/A set riscaldamento potenziato  -230-",45]
[null,9880690003,"TC806 tettuccio parasole",110]
[null,9830690011,"SFPM01 multimode LC-2mm 50/125 wavelength 1310nm -2Km. 100mbps",100]
[null,9830690012,"SFPM02 singlemode LC-2mm 9/125 wavelength 1310nm -20Km. 100mbps",108]
[null,9830690013,"SFPM03 singlemode LC TX 9/125 wavelength TX 1310nm  RX 1550nm -10Km. 100mbps",118]
[null,9830690014,"SFPM04 singlemode LC TX 9/125 wavelength TX 1550nm  RX 1310nm -10Km. 100mbps",146]
[]
[]
[null,"Custodie ALLUMINIO raffreddate/fibra ottica"]
[null,null,"CRONO CLK314 con raffreddamento ad aria compressa"]
[null,9831410004,"CRONO CLK314+TC+ST -230-  *air cooling*",1070]
[null,9831480004,"VC314 vetrocamera",58]
[null,9831480005,"VA314 vetro antisfondamento",49]
[null,9831480008,"AL314/A alimentatore 230/12Vdc 1,3A",49]
[null,9831480009,"AL314/B alimentatore 230/24Vac  500mA",49]
[null,9831480010,"AL314/C alimentatore 230/12Vdc 2,1A",49]
[null,9831480020,"TP314 tamper antimanomissione",46]
[null,9831490003,"TC314 tettuccio parasole",24]
[null,9831490004,"LC314 lucchetto per chiusura posteriore",21]
[]
[null,null,"CRONO CLK306 con sistema di trasmissione su fibra ottica"]
[null,9830610004,"CRONO CLK306+TC+ST+RS+MC  -230-",694]
[null,9830680004,"VC306 vetrocamera",58]
[null,9830680005,"VA306 vetro antisfondamento",49]
[null,9830680006,"RP306/A set riscaldamento potenziato  -230-",54]
[null,9830680001,"VI306 set ventilazione interna a ciclo continuo pre-installata",82]
[null,9830680020,"TP306 tamper antimanomissione",46]
[null,9830690002,"LC306 lucchetto per chiusura posteriore",21]
[null,9830690003,"TC306 tettuccio parasole",24]
[null,9830680021,"MC306 media converter fibra ottica, 100/1000 Base -T+RJ45 port",260]
[null,9830690011,"SFPM01 multimode LC-2mm 50/125 wavelength 1310nm -2Km. 100mbps",100]
[null,9830690012,"SFPM02 singlemode LC-2mm 9/125 wavelength 1310nm -20Km. 100mbps",108]
[null,9830690013,"SFPM03 singlemode LC TX 9/125 wavelength TX 1310nm  RX 1550nm -10Km. 100mbps",118]
[null,9830690014,"SFPM04 singlemode LC TX 9/125 wavelength TX 1550nm  RX 1310nm -10Km. 100mbps",146]
[]
[]
[null,"Custodie a sfera per dome/PTZ"]
[null,null,"CDX380"]
[null,9838010004,"KIT CDX380+TC+ST+RS -230-  trasparente",1100]
[null,9838010005,"KIT CDX380+TC+ST+RS -24-  trasparente",1100]
[null,9838010006,"KIT CDX380+TC+ST+RS -12-  trasparente",1100]
[null,"983809xxxx","PDX adattatore interno (vedi datasheet custodia)",64]
[]
[null,null,"CDX385 POE"]
[null,9838510004,"KIT CDX385POE+TC+ST+RS -230-  trasparente",1190]
[null,"983809xxxx","PDX adattatore interno (vedi datasheet custodia)",64]
[]
[]
[]
[]
[]
[]
[]
[null,"Supporti e snodi per custodie"]
[]
[null,9810000001,"ST500 supporto a parete",30]
[null,9810000015,"ST700 supporto a parete passaggio cavi protetto",39]
[null,9810000041,"ST800 supporto a parete INOX per custodie serie CSX8xx, CRLxx e CRIxx",212]
[null,9810000060,"ST200 supporto a parete per brangeggio PTX200",425]
[null,9810000014,"ST160 supporto a parete INOX per custodie serie CSX900 e CRL150",240]
[null,9810000024,"ST900 supporto a parete",62]
[null,9810000063,"ST910 supporto e snodo a parete per custodia serie EXCMA910, CSX900",296]
[null,9810000037,"ST300 supporto a parete",57]
[null,9810000071,"STP910 supporto a parapetto per custodie serie EXCMA",252]
[null,9810000002,"STS 500 supporto a soffitto",90]
[null,9810000027,"STS 700 supporto passaggio cavi protetto a soffitto",86]
[]
[null,9810000059,"STS 910 adattatore per montaggio a soffitto delle custodie serie EXCMA910",82]
[null,9810000040,"STS 800 adattatore per montaggio a soffitto delle custodie serie CSX8xx (solo in abbinamento con ST800)",64]
[null,9810000030,"SNF800 piastra adattatrice per montaggio su brandeggio le custodie in acciaio INOX serie CSX8xx",45]
[null,9810000211,"SN160 snodo completo in acciaio inox AISI 316L",228]
[null,9810000032,"SNI60 snodo per inclinazione terzo asse",46]
[]
[]
[null,"Adattatori a palo/angolo per custodie"]
[]
[null,9810000008,"SP/A collare da palo",50]
[null,9810000016,"SP/C collare da palo INOX",192]
[null,9810000061,"SP/CB collare da palo per brandeggio PTX200",252]
[null,9810000017,"SA/A adattatore ad angolo",42]
[null,9810000018,"SA/C adattatore ad angolo INOX",108]
[null,9810000062,"SA/CB adattatore ad angolo per brandeggio PTX200",204]
[null,9810000064,"SP/UG collare da palo singolo per pali da Ø130-250mm.",64]
[null,9810000019,"PA1 adattatore a muro per pareti  a scarsa consistenza",72]
[null,9810000020,"PA1/SD piastra con scatola di derivazione",160]
[]
[]
[]
[]
[null,"illuminatori ad infrarosso a LED"]
[null,null,"NYX ELI NUO IR faro a led luce infrarossa"]
[null,9899400044,"NYX ELI80 NUO faro IR 24Vac-dc  -10°- distanza fino a 180m",560]
[null,9899400045,"NYX ELI80 NUO faro IR 24Vac-dc  -30°- distanza fino a 130m",560]
[null,9899400046,"NYX ELI80 NUO faro IR 24Vac-dc  -60°- distanza fino a 90m",560]
[null,9899400047,"NYX ELI80 NUO faro IR 24Vac-dc  -120°- distanza fino a 50m",560]
[null,9899400068,"NYX ELI80 NUO -230 faro IR 230Vac/110Vac auto-sensing   -10°- distanza fino a 180m",440]
[null,9899400069,"NYX ELI80 NUO -230 faro IR 230Vac/110Vac auto-sensing   -30°- distanza fino a 130m",440]
[null,9899400070,"NYX ELI80 NUO -230 faro IR 230Vac/110Vac auto-sensing   -60°- distanza fino a 90m",440]
[null,9899400071,"NYX ELI80 NUO -230 faro IR 230Vac/110Vac auto-sensing   -120°- distanza fino a 50m",440]
[null,9899400052,"NYX ELI80 NUO POE faro IR PoE  -10°- distanza fino a 180m",590]
[null,9899400053,"NYX ELI80 NUO POE faro IR PoE  -30°- distanza fino a 130m",590]
[null,9899400054,"NYX ELI80 NUO POE faro IR PoE  -60°- distanza fino a 90m",590]
[null,9899400055,"NYX ELI80 NUO POE faro IR PoE  -120°- distanza fino a 50m",590]
[null,9899400056,"NYX ELI160 NUO faro IR 24Vac-dc  -10°- distanza fino a 240m",620]
[null,9899400057,"NYX ELI160 NUO faro IR 24Vac-dc  -30°- distanza fino a 180m",620]
[null,9899400058,"NYX ELI160 NUO faro IR 24Vac-dc  -60°- distanza fino a 130m",620]
[null,9899400059,"NYX ELI160 NUO faro IR 24Vac-dc  -120°- distanza fino a 80m",620]
[null,9899400072,"NYX ELI160 NUO -230 faro IR 230Vac/110Vac auto-sensing   -10°- distanza fino a 240m",528]
[null,9899400073,"NYX ELI160 NUO -230 faro IR 230Vac/110Vac auto-sensing   -30°- distanza fino a 180m",528]
[null,9899400074,"NYX ELI160 NUO -230 faro IR 230Vac/110Vac auto-sensing   -60°- distanza fino a 130m",528]
[null,9899400075,"NYX ELI160 NUO -230 faro IR 230Vac/110Vac auto-sensing   -120°- distanza fino a 80m",528]
[null,9899400078,"NYX ELI160 NUO HI-POE faro IR PoE Plus  -10°- distanza fino a 240m",680]
[null,9899400079,"NYX ELI160 NUO HI-POE faro IR PoE Plus  -30°- distanza fino a 180m",680]
[null,9899400080,"NYX ELI160 NUO HI-POE faro IR PoE Plus  -60°- distanza fino a 130m",680]
[null,9899400081,"NYX ELI160 NUO HI-POE faro IR PoE Plus  -120°-distanza fino a 80m",680]
[null,9899800001,"PF1 piastra portafaro per due fari",42]
[null,9899800002,"PF3 piastra portafaro per un faro",33]
[]
[null,9899400900,"NYX ELI80 NUO POE faro IR PoE  -10°- in abbinamento a CRONO POE",360]
[null,9899400901,"NYX ELI80 NUO POE faro IR PoE  -30°- in abbinamento a CRONO POE",360]
[null,9899400902,"NYX ELI80 NUO POE faro IR PoE  -60°- in abbinamento a CRONO POE",360]
[]
[]
[null,null,"NYX ELI NUO WL faro a led luce bianca"]
[null,9899400082,"NYX ELI80 NUO WL  faro a led luce bianca 24Vac-dc  -10°- ",600]
[null,9899400083,"NYX ELI80 NUO WL  faro a led luce bianca 24Vac-dc  -30°- ",600]
[null,9899400084,"NYX ELI80 NUO WL  faro a led luce bianca 24Vac-dc  -60°- ",600]
[null,9899400085,"NYX ELI80 NUO -230 WL faro a led luce bianca 230Vac/110Vac auto-sensing   -10°- ",480]
[null,9899400086,"NYX ELI80 NUO -230 WL faro a led luce bianca 230Vac/110Vac auto-sensing   -30°- ",480]
[null,9899400087,"NYX ELI80 NUO -230 WL faro a led luce bianca 230Vac/110Vac auto-sensing   -60°- ",480]
[null,9899400088,"NYX ELI80 NUO POE WL  faro a led luce bianca PoE Plus  -10°- ",630]
[null,9899400089,"NYX ELI80 NUO POE WL  faro a led luce bianca PoE Plus  -30°- ",630]
[null,9899400090,"NYX ELI80 NUO POE WL  faro a led luce bianca PoE Plus  -60°- ",630]
[]
[null,9899400910,"NYX ELI80 NUO POE WL faro a led luce bianca PoE  -10°- in abbinamento a CRONO POE",380]
[null,9899400920,"NYX ELI80 NUO POE WL faro a led luce bianca PoE  -30°- in abbinamento a CRONO POE",380]
[null,9899400930,"NYX ELI80 NUO POE WL faro a led luce bianca PoE  -60°- in abbinamento a CRONO POE",380]
[]
[null,null,"NYX ELI NUO WL-HT"]
[null,9899400801,"NYX ELI160 NUO WL-HT faro a led luce bianca per alte temperature   24Vac-dc      -10°- ",1680]
[null,9899400802,"NYX ELI160 NUO WL-HT faro a led luce bianca per alte temperature   24Vac-dc      -30°- ",1680]
[null,9899400803,"NYX ELI160 NUO WL-HT faro a led luce bianca per alte temperature   24Vac-dc      -60°- ",1680]
[null,9899400804,"NYX ELI160 NUO WL-HT faro a led luce bianca per alte temperature  230Vac/110Vac auto-sensing   -10°- ",1680]
[null,9899400805,"NYX ELI160 NUO WL-HT faro a led luce bianca per alte temperature  230Vac/110Vac auto-sensing   -30°- ",1680]
[null,9899400806,"NYX ELI160 NUO WL-HT faro a led luce bianca per alte temperature  230Vac/110Vac auto-sensing   -60°- ",1680]
[null,9899400807,"NYX ELI160 NUO WL-HT faro a led luce bianca per alte temperature PoE Plus  -10°- ",1780]
[null,9899400808,"NYX ELI160 NUO WL-HT faro a led luce bianca per alte temperature PoE Plus  -30°- ",1780]
[null,9899400809,"NYX ELI160 NUO WL-HT faro a led luce bianca per alte temperature PoE Plus  -60°- ",1780]

{"sheet":"IP camera","index":3,"n_rows":164,"n_cols":4,"rows_kept":164,"cut":false,"hidden":false,"merged":[]}
[null,"Code","Description","Price                € "]
[]
[]
[null,"unità di ripresa in acciaio inox con IP camera integrata Full-HD"]
[null,null,"TBX6320 IP                                                                                                                           IP camera da 2Mpx con zoom motorizzato 32X"]
[null,7710010001,"TBX6320 IP  2Mpx IP camera 1080p    con zoom motorizzato 32x",2695]
[null,7710011001,"TBX6320WP IP  2Mpx IP camera 1080p    con tergicristallo integrato e zoom motorizzato 32x",3095]
[]
[]
[]
[]
[]
[]
[]
[]
[]
[null,9810000018,"SA/C adattatore ad angolo INOX",108]
[null,9810000016,"SP/C collare da palo INOX",192]
[null,9810000028,"STS 800 adattatore per montaggio a soffitto delle custodie serie CSX8xx (solo in abbinamento con ST800)",64]
[]
[]
[]
[null,"unità di ripresa in acciaio inox con IP camera integrata Full-HD"]
[null,null,"TBX6320T tunnel                                                                                                                IP camera da 2Mpx con zoom motorizzato 32X"]
[null,7710010005,"TBX6320 T tunnel 2Mpx IP camera 1080p    con zoom motorizzato 32x   ",2680]
[]
[]
[]
[]
[]
[]
[]
[]
[]
[]
[null,9810000018,"SA/C adattatore ad angolo INOX",108]
[null,9810000016,"SP/C collare da palo INOX",192]
[null,9810000028,"STS 800 adattatore per montaggio a soffitto delle custodie serie CSX8xx (solo in abbinamento con ST800)",64]
[]
[]
[]
[null,"unità di ripresa in acciaio inox con IP camera integrata 4K"]
[null,null,"TBX8000  4K                                                                                                                           telecamera IP 4K con funzione AI"]
[null,7710010009,"TBX8000 IP camera 4K con funzione AI integrata e ottica varifocal 3,8-17mm",3098]
[null,7710010010,"TBX8006 IP camera 4K  con funzione AI integrata,e ottica varifocal 3,8-17mm e media converter F.O. integrato",3360]
[]
[]
[]
[]
[]
[]
[null,9810000018,"SA/C adattatore ad angolo INOX",102]
[null,9810000016,"SP/C collare da palo INOX",188]
[null,9810000028,"STS 800 adattatore per montaggio a soffitto delle custodie serie CSX8xx (solo in abbinamento con ST800)",64]
[]
[]
[]
[null,"unità di ripresa in acciaio inox con raffreddata a liquido con IP camera integrata Full-HD"]
[null,null,"TBL6000 liquid cooled                                                                                                            IP camera da 2Mpx con zoom motorizzato 32X"]
[null,7710010013,"TBL6010 IP  2mpx IP camera 32x motorized zoom",2950]
[null,7710010014,"TBL6016 IP  2mpx IP camera 32x motorized zoom  con media converter F.O. integrato",3210]
[]
[]
[]
[]
[]
[null,9815090002,"AGF150 gruppo filtraggio aria compressa",580]
[null,9815090003,"VHF150/B vetro per alte temperature fino a +600°C",240]
[null,9815090006,"VAIR150 flangia anteriore con vetro anti infrarosso",550]
[null,9810000014,"ST160 supporto a parete INOX per custodie serie CSX900 e CRL150",240]
[null,9810000018,"SA/C adattatore ad angolo INOX",108]
[null,9810000016,"SP/C collare da palo INOX",192]
[]
[]
[]
[]
[]
[]
[null,"unità di ripresa PTZ in acciaio inox con IP camera integrata Full-HD 30x"]
[null,null,"DCX5000 dome camera                                                                                       telecamera Dome IP PTZ da 2Mpx con funzione Starlight"]
[null,7710010015,"DCX5000 IP starlight 2Mpx PTZ camera 1080p 30x    ",4340]
[]
[null,9810000018,"SA/C adattatore ad angolo INOX",108]
[null,9810000016,"SP/C collare da palo INOX",192]
[]
[]
[]
[null,"unità di ripresa PTZ  in acciaio inox con IP camera integrata Full-HD"]
[null,null,"ARGO200                                                                                                                          unità di ripresa PTZ in acciaio inox"]
[null,7710010016,"ARGO200SH PTZ con IP camera da 2Mpx, 32x zoom motorizzato, input 220/240Vac",9600]
[null,7710010017,"ARGO200SH PTZ con IP camera da 2Mpx,32x zoom motorizzato, input 110/120Vac",9600]
[null,7710010018,"ARGO200SH PTZ con IP camera da 2Mpx, 32x zoom motorizzato, input24Vac",9600]
[null,7710010019,"ARGO200DH-IR PTZ con IP camera da 2Mpx, 32x zoom motorizzato, illuminatore IR input 220/240Vac",10280]
[null,7710010020,"ARGO200DH-IR PTZ con IP camera da 2Mpx, 32x zoom motorizzato, illuminatore IR input 110/120Vac",10280]
[null,7710010021,"ARGO200DH-IR PTZ con IP camera da 2Mpx, 32x zoom motorizzato, illuminatore IR input 24Vac",10280]
[null,7710010022,"ARGO200DH-TH PTZ con IP camera da 2Mpx, 32x zoom motorizzato, telecamera termica 384x288 con ottica 20mm, input 220/240Vac",12880]
[null,7710010023,"ARGO200DH-TH PTZ con IP camera da 2Mpx, 32x zoom motorizzato, telecamera termica 384x288 con ottica 20mm, input 110/120Vac",12880]
[null,7710010024,"ARGO200DH-TH PTZ con IP camera da 2Mpx, 32x zoom motorizzato, telecamera termica 384x288 con ottica 20mm, input24Vac",12880]
[null,7710010025,"ARGO200DH-TH PTZ con IP camera da 2Mpx, 32x zoom motorizzato, telecamera termica 384x288 con ottica 35mm, input 220/240Vac",13060]
[null,7710010026,"ARGO200DH-TH PTZ con IP camera da 2Mpx, 32x zoom motorizzato, telecamera termica 384x288 con ottica 35mm, input 110/120Vac",13060]
[null,7710010027,"ARGO200DH-TH PTZ con IP camera da 2Mpx, 32x zoom motorizzato, telecamera termica 384x288 con ottica 35mm, input24Vac",13060]
[null,7710010028,"ARGO200DH-TH PTZ con IP camera da 2Mpx, 32x zoom motorizzato, telecamera termica 640x480 con ottica 20mm, input 220/240Vac",14200]
[null,7710010029,"ARGO200DH-TH PTZ con IP camera da 2Mpx, 32x zoom motorizzato, telecamera termica 640x480 con ottica 20mm, input 110/120Vac",14200]
[null,7710010030,"ARGO200DH-TH PTZ con IP camera da 2Mpx, 32 x zoom motorizzato, telecamera termica 640x480 con ottica 20mm, input24Vac",14200]
[null,7710010031,"ARGO200DH-TH PTZ con IP camera da 2Mpx, 32x zoom motorizzato, telecamera termica 640x480 con ottica 35mm, input 220/240Vac",14600]
[null,7710010032,"ARGO200DH-TH PTZ con IP camera da 2Mpx, 32x zoom motorizzato, telecamera termica 640x480 con ottica 35mm, input 110/120Vac",14600]
[null,7710010033,"ARGO200DH-TH PTZ con IP camera da 2Mpx, 32x zoom motorizzato, telecamera termica 640x480 con ottica 35mm, input24Vac",14600]
[]
[]
[null,9810000042,"WTP25 tanica lavavetro da 25lt. prevalenza 5m. con pompa integrata -230-",448]
[null,9810000043,"WTP25 tanica lavavetro da 25lt. prevalenza 11m. con pompa integrata -230-",703]
[null,9810000045,"WTP25 tanica lavavetro da 25lt. prevalenza 5m. con pompa integrata -24-",448]
[null,9810000046,"WTP25 tanica lavavetro da 25lt. prevalenza 11m. con pompa integrata -24-",703]
[null,9810000048,"WTP5 tanica lavavetro da 5lt. prevalenza 5m. con pompa integrata -230-",401]
[null,9810000049,"WTP5 tanica lavavetro da 5lt. prevalenza 11m. con pompa integrata -230-",430]
[null,9810000051,"WTP5 tanica lavavetro da 5lt. prevalenza 5m. con pompa integrata -24-",401]
[null,9810000052,"WTP5 tanica lavavetro da 5lt. prevalenza 11m. con pompa integrata -24-",430]
[]
[]
[]
[]
[]
[null,9810000060,"ST200 supporto a parete per brangeggio PTX200",425]
[null,9810000061,"SP/CB collare da palo per brandeggio PTX200",252]
[null,9810000062,"SA/CB adattatore ad angolo per brandeggio PTX200",204]
[]
[]
[]
[null,"unità di ripresa ATEX in alluminio "]
[null,null,"EXCMA910 IPcam                                                                                                  telecamera IP ATEX da 2Mpx con zoom motorizzato"]
[null,7710010034,"EXCMA910 IPcam 6010  2Mpx IP camera 1080p    32x motorized zoom",3560]
[]
[]
[]
[]
[]
[]
[]
[]
[null,9891080001,"RD910/A riscaldamento potenziato 110-240Vac 60W preassemblato",63]
[null,9891080002,"RD910/B riscaldamento potenziato 12-24Vac dc 60W preassemblato",63]
[null,9891090002,"TP910 tamper antimanomissione",67]
[null,9891090003,"PMTC set composto da due pressacavi M25 con gommino per cavo non armato",98]
[null,9891090004,"PNPT set composto da due pressacavi 3/4\" NPT con gommino per cavo non armato",117]
[null,9891090005,"TPM25 set composto da due tappi M25",45]
[null,9891090008,"PMTC-P set composto da 1 pressacavo M25 con gommino per cavo non armato e 1 tappo",98]
[]
[]
[null,"unità di ripresa ATEX in acciaio inox AISI 316L "]
[null,null,"EXCMA910X IPcam                                                                                                     telecamera IP ATEX da 2Mpx con zoom motorizzato"]
[null,7710010036,"EXCMA910X IPcam 6010  2Mpx IP camera 1080p    32x motorized zoom",4640]
[]
[]
[]
[]
[]
[]
[]
[]
[null,9891080001,"RD910/A riscaldamento potenziato 110-240Vac 60W preassemblato",63]
[null,9891080002,"RD910/B riscaldamento potenziato 12-24Vac dc 60W preassemblato",63]
[null,9891090002,"TP910 tamper antimanomissione",67]
[null,9891090006,"PMTC-X set composto da due pressacavi M25 in AISI 316L con gommino per cavo non armato",339]
[null,9891090007,"PMTC-PX set composto da 1 pressacavo M25 in AISI 316L con gommino per cavo non armato e 1 tappo in AISI 316L",284]

{"sheet":"Thermal camera","index":4,"n_rows":177,"n_cols":4,"rows_kept":177,"cut":false,"hidden":false,"merged":[]}
[null,"Code","Description","Price                € "]
[]
[]
[null,"Thermal camera for SECURITY"]
[null,null,"TRH300 IP                                                                                                                                   IP thermal camera res.384x288 for security"]
[null,7730011001,"TRH300 IP    8mm, f0.8","su richiesta"]
[null,7730011002,"TRH300 IP    12mm, f1.0","su richiesta"]
[null,7730011003,"TRH300 IP    20mm, f1.0","su richiesta"]
[null,7730011004,"TRH300 IP    35mm, f1.0","su richiesta"]
[]
[]
[]
[]
[]
[null,null,"TRH600 IP                                                                                                                             IP thermal camera res.640x480 for security"]
[null,7760011001,"TRH600 IP    8mm, f0.8","su richiesta"]
[null,7760011002,"TRH600 IP    12mm, f1.0","su richiesta"]
[null,7760011003,"TRH600 IP    20mm, f1.,0","su richiesta"]
[null,7760011004,"TRH600 IP    35mm, f1.0","su richiesta"]
[]
[]
[]
[]
[]
[]
[]
[null,"Thermal camera for RADIOMETRIC"]
[null,null,"TRH320 IP                                                                                                                             IP thermal camera res.384x288 for radiometric vision"]
[null,7732011001,"TRH320 IP    8mm, f0.8","su richiesta"]
[null,7732011002,"TRH320 IP    12mm, f1.0","su richiesta"]
[null,7732011003,"TRH320 IP    20mm, f1.0","su richiesta"]
[null,7732011004,"TRH320 IP    35mm, f1.0","su richiesta"]
[]
[]
[]
[]
[]
[null,null,"TRH640 IP                                                                                                                             IP thermal camera res.640x480 for radiometric vision"]
[null,7764011001,"TRH640 IP    8mm, f0.8","su richiesta"]
[null,7764011002,"TRH640 IP    12mm, f1.0","su richiesta"]
[null,7764011003,"TRH640 IP    20mm, f1.0","su richiesta"]
[null,7764011004,"TRH640 IP    35mm, f1.0","su richiesta"]
[]
[]
[]
[]
[]
[null,null,"TRH  ACCESSORIES"]
[null,9810000008,"SP/A collare da palo",46]
[null,9810000017,"SA/A adattatore ad angolo",42]
[null,9810000010,"STS 500 supporto a soffitto",64]
[]
[]
[null,"Thermal camera for SECURITY"]
[null,null,"TRX300 IP                                                                                                                              IP thermal camera res.384x288 for security"]
[null,7730016001,"TRX300 IP    8mm, f0.8","su richiesta"]
[null,{"$f":"B56+1","v":7730016002},"TRX300 IP    12mm, f1.0","su richiesta"]
[null,7730016003,"TRX300 IP    20mm, f1.0","su richiesta"]
[null,7730016004,"TRX300 IP    35mm, f1.0","su richiesta"]
[]
[]
[]
[]
[]
[null,null,"TRX600 IP                                                                                                                              IP thermal camera res.640x480 for security"]
[null,7760016001,"TRX600 IP    8mm, f0.8","su richiesta"]
[null,{"$f":"B66+1","v":7760016002},"TRX600 IP    12mm, f1.0","su richiesta"]
[null,7760016003,"TRX600 IP    20mm, f1.0","su richiesta"]
[null,7760016004,"TRX600 IP    35mm, f1.0","su richiesta"]
[]
[]
[]
[]
[]
[]
[]
[null,"Thermal camera for RADIOMETRIC"]
[null,null,"TRX320 IP                                                                                                                             IP thermal camera res.384x288 for radiometric vision"]
[null,7732016001,"TRX320 IP    8mm, f0.8","su richiesta"]
[null,{"$f":"B79+1","v":7732016002},"TRX320 IP    12mm, f1.0","su richiesta"]
[null,7732016003,"TRX320 IP    20mm, f1.0","su richiesta"]
[null,7732016004,"TRX320 IP    35mm, f1.0","su richiesta"]
[]
[]
[]
[]
[]
[null,null,"TRX640 IP                                                                                                                             IP thermal camera res.640x480 for radiometric vision"]
[null,7764016001,"TRX640 IP    8mm, f0.8","su richiesta"]
[null,{"$f":"B89+1","v":7764016002},"TRX640 IP    12mm, f1.0","su richiesta"]
[null,7764016003,"TRX640 IP    20mm, f1.0","su richiesta"]
[null,7764016004,"TRX640 IP    35mm, f1.0","su richiesta"]
[]
[]
[]
[]
[]
[null,null,"TRX  ACCESSORIES"]
[null,9810000016,"SP/C collare da palo INOX",188]
[null,9810000018,"SA/C adattatore ad angolo INOX",102]
[null,9810000028,"STS 800 adattatore per montaggio a soffitto delle custodie serie CSX8xx (solo in abbinamento con ST800)",64]
[]
[]
[null,"ATEX Thermal camera -aluminium- for SECURITY/RADIOMETRIC"]
[null,null,"EXCMA910 Thermal 300 IP                                                                                              IP thermal camera res.384x288 for security"]
[null,7730018001,"EXCMA910 Thermal 300 IP    8mm, f0.8","su richiesta"]
[null,7730018002,"EXCMA910 Thermal 300 IP    12mm, f1.0","su richiesta"]
[null,7730018003,"EXCMA910 Thermal 300 IP    20mm, f1.0","su richiesta"]
[null,7730018004,"EXCMA910 Thermal 300 IP    35mm, f1.0","su richiesta"]
[]
[]
[]
[null,null,"EXCMA910 Thermal 600 IP                                                                                               IP thermal camera res.640x480 for security"]
[null,7760018001,"EXCMA910 Thermal 600 IP    8mm, f0.8","su richiesta"]
[null,7760018002,"EXCMA910 Thermal 600 IP    12mm, f1.0","su richiesta"]
[null,7760018003,"EXCMA910 Thermal 600 IP    20mm, f1.0","su richiesta"]
[null,7760018004,"EXCMA910 Thermal 600 IP    35mm, f1.0","su richiesta"]
[]
[]
[]
[null,null,"EXCMA910 Thermal 320 IP                                                                                              IP thermal camera res.384x288 for radiometric vision"]
[null,7732018001,"EXCMA910 Thermal 320 IP    8mm, f0.8","su richiesta"]
[null,7732018002,"EXCMA910 Thermal 320 IP    12mm, f1.0","su richiesta"]
[null,7732018003,"EXCMA910 Thermal 320 IP    20mm, f1.0","su richiesta"]
[null,7732018004,"EXCMA910 Thermal 320 IP    35mm, f1.0","su richiesta"]
[]
[]
[]
[null,null,"EXCMA910 Thermal 640 IP                                                                                              IP thermal camera res.640x480 for radiometric vision"]
[null,7764018001,"EXCMA910X Thermal 640 IP    8mm, f0.8","su richiesta"]
[null,7764018002,"EXCMA910X Thermal 640 IP    12mm, f1.0","su richiesta"]
[null,7764018003,"EXCMA910X Thermal 640 IP    20mm, f1.0","su richiesta"]
[null,7764018004,"EXCMA910X Thermal 640 IP   35mm, f1.0","su richiesta"]
[]
[]
[]
[]
[]
[null,"ATEX Thermal camera -stainless steel- for SECURITY/RADIOMETRIC"]
[null,null,"EXCMA910X Thermal 300 IP                                                                                              IP thermal camera res.384x288 for security"]
[null,7730020001,"EXCMA910X Thermal 300 IP    8mm, f0.8","su richiesta"]
[null,7730020002,"EXCMA910X Thermal 300 IP    12mm, f1.0","su richiesta"]
[null,7730020003,"EXCMA910X Thermal 300 IP    20mm, f1.0","su richiesta"]
[null,7730020004,"EXCMA910X Thermal 300 IP    35mm, f1.0","su richiesta"]
[]
[]
[]
[null,null,"EXCMA910X Thermal 600 IP                                                                                               IP thermal camera res.640x480 for security"]
[null,7760020001,"EXCMA910X Thermal 600 IP    8mm, f0.8","su richiesta"]
[null,7760020002,"EXCMA910X Thermal 600 IP    12mm, f1.0","su richiesta"]
[null,7760020003,"EXCMA910X Thermal 600 IP    20mm, f1.0","su richiesta"]
[null,7760020004,"EXCMA910X Thermal 600 IP    35mm, f1.0","su richiesta"]
[]
[]
[]
[null,null,"EXCMA910X Thermal 320 IP                                                                                              IP thermal camera res.384x288 for radiometric vision"]
[null,7732020001,"EXCMA910X Thermal 320 IP    8mm, f0.8","su richiesta"]
[null,7732020002,"EXCMA910X Thermal 320 IP    12mm, f1.0","su richiesta"]
[null,7732020003,"EXCMA910X Thermal 320 IP    20mm, f1.0","su richiesta"]
[null,7732020004,"EXCMA910X Thermal 320 IP    35mm, f1.0","su richiesta"]
[]
[]
[]
[null,null,"EXCMA910X Thermal 640 IP                                                                                              IP thermal camera res.640x480 for radiometric vision"]
[null,7764020001,"EXCMA910X Thermal 640 IP    8mm, f0.8","su richiesta"]
[null,7764020002,"EXCMA910X Thermal 640 IP    12mm, f1.0","su richiesta"]
[null,7764020003,"EXCMA910X Thermal 640 IP    20mm, f1.0","su richiesta"]
[null,7764020004,"EXCMA910X Thermal 640 IP   35mm, f1.0","su richiesta"]
[]
[]
[]
[]
[]
[null,null,"EXCMA  ACCESSORIES"]
[null,9810000016,"SP/C collare da palo INOX",188]
[null,9810000018,"SA/C adattatore ad angolo INOX",102]
[null,9810000059,"STS 910 adattatore per montaggio a soffitto delle custodie serie EXCMA910",82]

{"sheet":"Condizioni di fornitura","index":5,"n_rows":105,"n_cols":2,"rows_kept":105,"cut":false,"hidden":false,"merged":[]}
[]
[null,"CONDIZIONI GENERALI DI VENDITA"]
[]
[null,"Art.1 Premessa"]
[null,"Le presenti condizioni generali di fornitura regolano tutti i rapporti di fornitura e/o di vendita tra Global Proof S.r.l. ed il Compratore e sono sempre applicabili fatti salvi i diversi accordi scritti tra le parti. "]
[null,"I prodotti oggetto delle presenti condizioni generali di fornitura e/o di vendita sono quelli disponibili a catalogo Global Proof, compresi quelli derivanti da esecuzioni speciali."]
[]
[null,"Art.2 Conclusione del contratto"]
[null,"Il singolo contratto di fornitura e/o di vendita si intende accettato e vincolante per Global Proof S.r.l. solo dopo l’invio al cliente della conferma d’ordine. "]
[null,"Il perfezionamento del contratto di fornitura implica l’accettazione integrale e senza riserve delle presenti condizioni generali di fornitura."]
[null,"Non saranno accettati ordini per importi inferiori a 150,00 EUR netti."]
[null,"Le offerte fatte da agenti, rappresentanti ed ausiliari di commercio di Global Proof S.r.l. non sono impegnative per la società venditrice fino alla sottoscrizione della conferma d’ordine sopra indicata."]
[]
[null,"Art.3 Trasferimento del rischio"]
[null,"Il termine di resa dei prodotti è quello definito come EXW (Ex-Works) negli Incoterms 2010 e quindi la consegna della merce si intende effettuata franco stabilimento di Global Proof S.r.l. in Via dell’Industria, 10 –36013 Piovene Rocchette (VI) ITALY, nel giorno di emissione del documento di trasporto. Ciò significa che il rischio è trasferito al Compratore  con l’emissione del documento di trasporto anche nel caso in cui il ritiro della merce da parte del Compratore  o del vettore avvenga in ritardo rispetto all’emissione del documento stesso."]
[null,"La merce viaggia sempre a rischio del Compratore anche quando le spese di trasporto sono a carico di Global Proof S.r.l. e/o il vettore non sia stato scelto dal Compratore."]
[]
[null,"Art.4 Consegne e contestazioni"]
[null,"I termini di consegna riportati nell’ordine si intendono indicativi, mai tassativi e non vincolanti per Global Proof S.r.l."]
[null,"Le consegne potranno essere fatte in uno o più lotti."]
[null,"All’atto del ricevimento della merce il Compratore  è tenuto a verificare il numero dei colli e lo stato degli imballaggi, accettando la merce con riserva nel caso in cui dovessero essere evidenziate anomalie riscontrabili a prima vista quali ad esempio mancanza di colli, imballi aperti, danni agli imballi, etc."]
[null,"La descrizione di tali anomalie dovrà essere riportata per iscritto, tassativamente all’atto del ricevimento della merce, sulla copia per il trasportatore dei documenti di trasporto o della ricevuta di avvenuta consegna."]
[null,"In assenza di denuncia scritta, effettuata nei modi e tempi di cui sopra, Global Proof S.r.l. non accetterà alcun reclamo per anomalie riguardanti il numero dei colli consegnati o danni alla merce presumibili dallo stato degli imballi alla consegna."]
[null,"Il Compratore è inoltre tenuto a comunicare per iscritto, a Global Proof S.r.l. l’accettazione con riserva della merce entro il giorno lavorativo seguente a quello del ricevimento. In caso contrario dovrà considerarsi decaduto da qualsivoglia diritto o garanzia."]
[null,"L’eventuale reso dei prodotti dovrà sempre avvenire in porto franco, previa autorizzazione di Global Proof S.r.l. tramite emissione di RMA (Return Manifacturer Authorization)."]
[null,"I reclami debbono essere effettuati mediante lettera raccomandata indirizzata al venditore e devono indicare, dettagliatamente, i vizi o le difformità contestate."]
[null,"Qualora il reclamo dovesse risultare infondato, il compratore sarà tenuto a risarcire a Global Proof S.r.l. tutte le spese da questa eventualmente sostenute per l’accertamento dei vizi o dei difetti, comprese le spese di viaggio, vitto ed alloggio di tecnici o altri incaricati, perizie etc."]
[]
[null,"Art.5 Garanzia e responsabilità"]
[null,"Global Proof S.r.l. garantisce i propri prodotti da difetti di materiale o di lavorazione e di progettazione che si manifestino entro 36 mesi dalla data di spedizione. La presente garanzia non si applica, in ogni caso, qualora il compratore non provi di aver effettuato un corretto uso, manutenzione e conservazione dei prodotti forniti."]
[null,"La garanzia sarà prestata a condizione che:"]
[null,"Il Compratore  sia in regola con i pagamenti dovuti a Global Proof S.r.l.."]
[null,"I prodotti siano stati conservati in luogo idoneo e vengano utilizzati conformemente alla loro destinazione, secondo le modalità indicate nelle istruzioni d’uso e manutenzione fornite da Global Proof S.r.l."]
[null,"La denuncia dei vizi sia dettagliata e pervenga a Global Proof S.r.l. tramite raccomandata a.r. entro 8 (otto) giorni dalla data della scoperta del vizio."]
[null,"E’ espressamente esclusa ogni responsabilità per danni indiretti o per mancato reddito. L’eventuale risarcimento del danno al compratore non potrà mai, in ogni caso, superare il prezzo di fattura dei prodotti contestati."]
[null,"L’effetto della garanzia riguarda esclusivamente la riparazione o la sostituzione del prodotto o sue parti risultate inservibili per accertato difetto di materiali o di lavorazione precedenti la spedizione."]
[null,"Sono esclusi dalla garanzia:"]
[null,"      A) Le parti per cui nessuna garanzia è riconosciuta dai produttori delle stesse (es. lampade);"]
[null,"      B) Danni causati da negligenza e/o uso improprio;"]
[null,"      C) Danni causati dal mancato rispetto delle caratteristiche del prodotto;"]
[null,"Danni causati da mancato rispetto delle istruzioni fornite da Global Proof S.r.l. per l’esecuzione delle operazioni cui il prodotto deve essere sottoposto per il suo utilizzo;"]
[null,"Prodotti modificati senza il consenso scritto di Global Proof S.r.l.;"]
[null,"Prodotti cui siano state sostituite parti con ricambi non forniti da Global Proof S.r.l."]
[null,"I prodotti contestati potranno essere ritornati solamente previa autorizzazione di Global Proof S.r.l. ed in porto franco. Dovranno inoltre essere sempre accompagnati da un documento indicante il codice del prodotto ritornato, la quantità e il numero di riferimento assegnato da Global Proof S.r.l. all’atto dell’autorizzazione alla spedizione della merce."]
[null,"Global Proof S.r.l. si riserva il diritto di sottoporre i prodotti contestati a verifiche tecniche da parte di enti terzi qualificati e, ove tale verifica dovesse escluderne la responsabilità, l’onere della verifica stessa sarà addebitato al Compratore."]
[null,"Nel caso in cui il vizio denunciato venga riconosciuto coperto da garanzia, le spese di riconsegna della merce saranno a carico di Global Proof S.r.l. che riconoscerà al Compratore  anche le spese di trasporto da esso precedentemente sostenute per l’invio dei prodotti difettosi."]
[null,"Il rimborso di queste ultime avverrà con modalità definite da Global Proof S.r.l., previo ricevimento di copia della fattura relativa alle spese di trasporto da rimborsare."]
[null,"La garanzia qui pattuita è assorbente e sostitutiva delle garanzie legali per vizi e difformità ed esclude ogni altra possibile responsabilità del venditore comunque originata dai prodotti forniti; in particolare il compratore non potrà avanzare altre richieste di risarcimento del danno, di riduzione del prezzo o di risoluzione del contratto. Decorsa la durata della garanzia nessuna pretesa potrà essere fatta valere nei confronti del venditore."]
[]
[null,"Art.6 Riserva di proprietà"]
[null,"Ove la consegna sia effettuata prima del pagamento dell’intera somma dovuta, la vendita si intende effettuata ai sensi e per gli effetti degli artt. 1523 e segg. del codice civile italiano e quindi Global Proof S.r.l. conserva la proprietà dei prodotti sino a totale pagamento."]
[null,"I rischi inerenti la conservazione dei prodotti vengono assunti dal Compratore al momento dell’avvenuta consegna."]
[null,"Sino a che non avrà effettuato il totale pagamento del prezzo il Compratore  si impegna:"]
[null,"      A) A rendere identificabili i Prodotti come di proprietà di Global Proof S.r.l.;"]
[null,"      B) Nel caso in cui i Prodotti fossero sottoposti ad atti conservativi od esecutivi da parte di terzi, a rendere noto all’Ufficiale Giudiziale procedente che i prodotti sono di proprietà di Global Proof S.r.l., dandone immediata comunicazione a quest’ultima entro 24 ore a mezzo lettera raccomandata a.r. anticipata via fax."]
[null,"      C) Nel caso di eventuale fallimento del cliente medesimo ci si riferisce agli articoli 72 e 73 della legge 267 del 16/03/1942."]
[]
[null,"Art.7 Pagamento"]
[null,"Il pagamento dovrà essere effettuato, salvo diverso accordo scritto, contestualmente alla consegna presso l’istituto bancario indicato da Global Proof S.r.l.. Qualunque ritardo o irregolarità nel pagamento consentirà a Global Proof S.r.l., impregiudicato ogni diverso diritto, di sospendere le forniture e di risolvere i contratti in corso, anche se relativi ai pagamenti in questione, nonché di chiedere ed ottenere il risarcimento degli eventuali danni subiti."]
[null,"Il compratore è in ogni caso tenuto al pagamento integrale del prezzo pattuito anche in caso di contestazione o controversia risultando applicabile la clausola solve et repete."]
[null,"L’eventuale ritardo nel pagamento della fornitura comporterà la piena applicazione ed addebito degli interessi moratori come previsto dal D. Lgs. 231/02."]
[]
[null,"Art.8 Clausola di riservatezza"]
[null,"Il Compratore  dovrà mantenere il segreto su tutte le informazioni confidenziali che ha ricevuto e/o riceverà da Global Proof S.r.l. durante l’esecuzione dei contratti."]
[null,"Per “informazioni confidenziali” dovranno intendersi le conoscenze tecniche, i campioni, i disegni, i materiali, i documenti e le informazioni anche di carattere commerciale messi a disposizione del Compratore  da parte di Global Proof S.r.l.. Più ampiamente il riferimento sarà al “know how” dell’azienda."]
[null,"Le informazioni confidenziali costituenti il know-how sono e rimangono dunque di proprietà esclusiva di Global Proof S.r.l. e il Compratore, i suoi dipendenti ed i suoi collaboratori non dovranno comunicare a terzi alcuna delle suddette informazioni, né pubblicarle, né usarle per qualsiasi altro scopo non collegato all’attività relativa all’esecuzione del contratti di fornitura e/o di vendita, senza il consenso scritto di Global Proof S.r.l.. "]
[null,"Tutte le informazioni confidenziali costituite da disegni, scritti, materiali, campioni, aventi forma definitiva o provvisoria, dovranno essere restituiti a Global Proof S.r.l. ad avvenuta esecuzione dell’opera o, comunque, su semplice richiesta di quest’ultima."]
[null,"Nessuna disposizione contenuta nei contratti di fornitura o nelle condizioni generali potrà essere interpretata in modo tale da ravvisare una concessione, una licenza o altro diritto sul know-how a favore del Compratore."]
[null,"I patti contenuti nel presente articolo avranno efficacia anche dopo l’esecuzione o la risoluzione del singolo contratto di fornitura e/o di vendita, e le informazioni confidenziali rimarranno quindi definitivamente segrete."]
[null,"Il Compratore potrà comunicare le informazioni confidenziali soltanto ai dipendenti cui la conoscenza sia necessaria per lo svolgimento dell’attività prevista nei contratti di fornitura e/o di vendita ma esigerà che tali dipendenti si obblighino al segreto negli stessi termini per lei previsti."]
[]
[null,"Art.9 Disegni, documenti e proprietà intellettuale"]
[null,"Tutti i documenti, i disegni, i progetti, gli stampi e le altre opere intellettuali o dell’ingegno utilizzati per l’esecuzione dei contratti di fornitura e/o di vendita tra le parti sono di esclusiva proprietà di Global Proof S.r.l. e tali rimarranno anche al termine dei contratti medesimi."]
[]
[null,"Art.10 Privacy"]
[null,"Tutti i dati personali o sensibili comunicati al Compratore  e tutte le certificazioni e le informazioni messe a disposizione del medesimo da Global Proof S.r.l. per l’esecuzione dei contratti di fornitura e/o di vendita e, più ampiamente, dei rapporti commerciali tra le parti, dovranno essere utilizzati e trattati nel pieno rispetto della vigente normativa sulla Privacy, cui si opera ampio ed integrale richiamo."]
[]
[null,"Art.11 Disposizioni generali. Interpretazione e modifiche"]
[null,"Eventuali variazioni delle condizioni contrattuali concordate tra le parti non costituiscono novazione del contratto, salvo espressa volontà contraria, risultante per iscritto. "]
[]
[null,"Art.12 Legge applicabile"]
[null,"Le presenti condizioni generali di fornitura, così come tutti i rapporti contrattuali che abbiano ad intercorrere tra Global Proof S.r.l. e il Compratore sono sottoposti alla disciplina normativa prevista dalla legge italiana e debbono essere interpretati in conformità alla medesima."]
[]
[null,"Art.13 Controversie e foro competente"]
[null,"Per ogni controversia relativa o comunque collegata ai contratti cui si applicano le presenti condizioni generali, è esclusivamente competente il Tribunale di Vicenza, Sezione Distaccata di Schio."]
[]
[null,"Letto, approvato e sottoscritto"]
[]
[null,"Piovene Rocchette,"]
[null,"Global Proof S.r.l."]
[]
[null," "]
[null,"il Compratore "]
[]
[]
[null,"Anche ai sensi e per gli effetti di cui agli art. 141 e 142 c.c. le parti dichiarano di aver attentamente letto e specificamente nonché singolarmente approvato le seguenti e sopra estese clausole:"]
[]
[null,"Art.1-Premessa ; Art.2-Conclusione del contratto; Art.3-Trasferimento del rischio; Art.4-Consegne e contestazioni; Art.5-Garanzia e responsabilità; Art.6-Riserva di proprietà; Art.7-Pagamento; Art.8-Clausola di riservatezza; Art.9-Disegni, documenti e proprietà intellettuale; Art.10-Privacy; Art.11-Disposizioni generali. Interpretazione e modifiche; Art.12-Legge applicabile; Art.13-Controversie e foro competente."]
[null,"  "]
[]
[null,"Piovene Rocchette,"]
[null,"Global Proof S.r.l."]
[]
[]
[null,"il Compratore "]